{"text_format":"1","workbook":"xlsx","n_sheets":4,"sheets":["Sobre esta herramienta","ODS","Resultados","Análisis de las cualidades"],"not_rendered":{"charts":0,"images":40,"macros":1,"external_links":0,"defined_names":2,"comments":0,"pivot_tables":0},"unopened":[],"bounds":{"document_bytes":16777216,"sheet_cells":100000,"rows_first":2000,"rows_last":500,"rows_between":2000,"halvings":0,"cell_chars":16384,"cell_head_chars":4096},"cells_cut":0,"cells_raw":0,"read":"whole","date_system":"1900"}

{"sheet":"Sobre esta herramienta","index":0,"n_rows":64,"n_cols":3,"rows_kept":64,"cut":false,"hidden":false,"merged":[[40,1,54,1],[40,2,54,7],[56,1,61,1],[56,2,61,7],[63,1,76,1],[63,2,76,7],[7,1,16,1],[7,2,16,7],[18,1,29,1],[18,2,29,7],[31,1,38,1],[31,2,38,7]]}
[]
[]
[]
[]
[]
[]
[]
[null,"Objetivo de la medición","A través de un conjunto de preguntas sobre las acciones que realiza la empresa en torno a cada uno de los 17 ODS, esta herramienta busca aumentar el impacto de las contribuciones empresariales a los ODS fomentando que las empresas tengan cinco cualidades para lograr ser líderes de la sostenibilidad. De esta manera, la herramienta evalúa si las acciones empresariales son intencionales, ambiciosas, consistentes, colaborativas y responsables, mediante un proceso de autorreflexión para que determinen cómo esas cinco cualidades se pueden aplicar a sus estrategias de apoyo a los ODS."]
[]
[]
[]
[]
[]
[]
[]
[]
[]
[]
[null,"Metodología de medición","- La herramienta se basa en la aplicación de 14 preguntas por cada ODS (pestaña \"ODS\").\n- Las preguntas son respondidas solamente como Si o como No. \n- Se incluye una pestaña de \"Resultados\" donde se muestran los resultados de la organización en las 5 cualidades evaluadas para los ODS marcados como priorizados.\n- Si la organización no tiene priorizado alguno de los 17 Objetivos, la herramienta permite, a través de seleccionar No a la pregunta: \"¿Está este ODS priorizado por su organización?\", no tener en cuenta dicho ODS para tener cálculos más precisos sobre aquellos que sean relevantes para la empresa."]
[]
[]
[]
[]
[]
[]
[]
[]
[]
[]
[]
[]
[null,"Instrucciones de diligenciamiento","- En la pestaña \"ODS\", iniciando por el ODS 1, \"Fin de la pobreza\", conteste \"¿Está este ODS priorizado por su organización?\". Si contesta \"Sí\", diligencie las restantes 13 preguntas del respectivo ODS. Si contesta \"No\", baje el cursor hasta el siguiente ODS y repita este procedimiento.\n- Una vez revisados los 17 ODS, vaya a la pestaña \"Resultados\" y haga clic en el botón \"Clic acá\"."]
[]
[]
[]
[]
[]
[]
[]
[]
[null,"Análisis de resultados","Al obtener los resultados, la empresa debe decidir si sobre todos los ODS que ha priorizado desea ser el líder o, si solo en un subconjunto de estos. Para esto, se sugieren algunos tips:\n- Enfocarse en aquellos cuya no atención en el corto o mediano plazo pueda conllevar implicaciones legales.\n- Enfocarse en aquellos ODS que presentan más relación con el objetivo de su negocio.\n- Enfocarse en los ODS donde ya tiene un trabajo adelantado, por lo que podría maximizar los resultados obtenidos y así mostrar resultados pertinentes y eficaces de su acción ante sus grupos de interés.\n- A la par, ir iniciando acciones para comenzar a actuar en aquellos ODS donde está más rezagado para, eventualmente, poder presentar resultados entorno a esos."]
[]
[]
[]
[]
[]
[]
[]
[]
[]
[]
[]
[]
[]
[]
[]
[null,"Sobre esta herramienta","Esta herramienta es una versión resumida de la Guía para el liderazgo de los Objetivos de Desarrollo Sostenible (ODS) elaborada por Pacto Global de las Naciones Unidas dirigida a empresas de todos los tamaños que quieren incluir la sostenibilidad dentro de su estrategia de negocio, destacando dentro de su propio ecosistema. "]
[]
[]
[]
[]
[]
[]
[null,"Quiénes somos","La Alianza Unidos por los ODS es un proyecto de cuatro aliados comprometidos con el desarrollo sostenible del país: Pacto Global Red Colombia, Fundación Bolívar Davivienda, Fundación Corona y la Cámara de Comercio de Bogotá. Del resultado de su unión surge esta iniciativa con tres objetivos principales:\n- Promover el conocimiento sobre la Agenda 2030 y sobre los Objetivos de Desarrollo Sostenible.\n- Promover la inclusión de la sostenibilidad en la lógica las empresas de todos los tamaños y todos los sectores.\n- Medir, visibilizar y presentar el aporte de las empresas colombianas a los ODS, la cual es una forma de promover el compromiso y la acción del sector empresarial con el desarrollo sostenible del país."]

{"sheet":"ODS","index":1,"n_rows":784,"n_cols":34,"rows_kept":784,"cut":false,"hidden":false,"merged":[[781,6,781,23],[781,24,781,26],[782,6,782,23],[782,24,782,26],[783,6,783,23],[783,24,783,26],[775,2,777,5],[775,6,777,23],[775,24,777,26],[775,33,777,35],[778,2,783,5],[778,6,778,23],[778,24,778,26],[778,33,783,35],[779,6,780,23],[779,24,780,26],[771,2,774,5],[771,6,772,23],[771,24,772,26],[771,33,774,35],[773,6,774,23],[773,24,774,26],[767,2,770,5],[767,6,768,23],[767,24,768,26],[767,33,770,35],[769,6,770,23],[769,24,770,26],[760,33,760,35],[761,2,766,5],[761,6,762,23],[761,24,762,26],[761,33,766,35],[763,6,764,23],[763,24,764,26],[765,6,766,23],[765,24,766,26],[742,0,784,0],[744,15,755,31],[750,2,750,13],[751,2,752,13],[757,16,757,20],[758,10,758,11],[759,2,759,23],[760,2,760,5],[760,6,760,23],[760,24,760,26],[738,6,738,23],[738,24,738,26],[739,6,739,23],[739,24,739,26],[740,6,740,23],[740,24,740,26],[732,2,734,5],[732,6,734,23],[732,24,734,26],[732,33,734,35],[735,2,740,5],[735,6,735,23],[735,24,735,26],[735,33,740,35],[736,6,737,23],[736,24,737,26],[728,2,731,5],[728,6,729,23],[728,24,729,26],[728,33,731,35],[730,6,731,23],[730,24,731,26],[724,2,727,5],[724,6,725,23],[724,24,725,26],[724,33,727,35],[726,6,727,23],[726,24,727,26],[717,33,717,35],[718,2,723,5],[718,6,719,23],[718,24,719,26],[718,33,723,35],[720,6,721,23],[720,24,721,26],[722,6,723,23],[722,24,723,26],[697,0,741,0],[699,15,712,31],[705,2,705,13],[706,2,707,13],[714,16,714,20],[715,10,715,11],[716,2,716,23],[717,2,717,5],[717,6,717,23],[717,24,717,26],[693,6,693,23],[693,24,693,26],[694,6,694,23],[694,24,694,26],[695,6,695,23],[695,24,695,26],[687,2,689,5],[687,6,689,23],[687,24,689,26],[687,33,689,35],[690,2,695,5],[690,6,690,23],[690,24,690,26],[690,33,695,35],[691,6,692,23],[691,24,692,26],[683,2,686,5],[683,6,684,23],[683,24,684,26],[683,33,686,35],[685,6,686,23],[685,24,686,26],[679,2,682,5],[679,6,680,23],[679,24,680,26],[679,33,682,35],[681,6,682,23],[681,24,682,26],[672,33,672,35],[673,2,678,5],[673,6,674,23],[673,24,674,26],[673,33,678,35],[675,6,676,23],[675,24,676,26],[677,6,678,23],[677,24,678,26],[654,0,696,0],[656,15,667,31],[662,2,662,13],[663,2,666,13],[669,16,669,20],[670,10,670,11],[671,2,671,23],[672,2,672,5],[672,6,672,23],[672,24,672,26],[650,6,650,23],[650,24,650,26],[651,6,651,23],[651,24,651,26],[652,6,652,23],[652,24,652,26],[644,2,646,5],[644,6,646,23],[644,24,646,26],[644,33,646,35],[647,2,652,5],[647,6,647,23],[647,24,647,26],[647,33,652,35],[648,6,649,23],[648,24,649,26],[640,2,643,5],[640,6,641,23],[640,24,641,26],[640,33,643,35],[642,6,643,23],[642,24,643,26],[636,2,639,5],[636,6,637,23],[636,24,637,26],[636,33,639,35],[638,6,639,23],[638,24,639,26],[629,33,629,35],[630,2,635,5],[630,6,631,23],[630,24,631,26],[630,33,635,35],[632,6,633,23],[632,24,633,26],[634,6,635,23],[634,24,635,26],[607,0,653,0],[609,15,624,31],[615,2,615,13],[616,2,617,13],[626,16,626,20],[627,10,627,11],[628,2,628,23],[629,2,629,5],[629,6,629,23],[629,24,629,26],[603,6,603,23],[603,24,603,26],[604,6,604,23],[604,24,604,26],[605,6,605,23],[605,24,605,26],[597,2,599,5],[597,6,599,23],[597,24,599,26],[597,33,599,35],[600,2,605,5],[600,6,600,23],[600,24,600,26],[600,33,605,35],[601,6,602,23],[601,24,602,26],[593,2,596,5],[593,6,594,23],[593,24,594,26],[593,33,596,35],[595,6,596,23],[595,24,596,26],[589,2,592,5],[589,6,590,23],[589,24,590,26],[589,33,592,35],[591,6,592,23],[591,24,592,26],[582,33,582,35],[583,2,588,5],[583,6,584,23],[583,24,584,26],[583,33,588,35],[585,6,586,23],[585,24,586,26],[587,6,588,23],[587,24,588,26],[557,0,606,0],[559,15,577,31],[565,2,565,13],[566,2,567,13],[579,16,579,20],[580,10,580,11],[581,2,581,23],[582,2,582,5],[582,6,582,23],[582,24,582,26],[553,6,553,23],[553,24,553,26],[554,6,554,23],[554,24,554,26],[555,6,555,23],[555,24,555,26],[547,2,549,5],[547,6,549,23],[547,24,549,26],[547,33,549,35],[550,2,555,5],[550,6,550,23],[550,24,550,26],[550,33,555,35],[551,6,552,23],[551,24,552,26],[543,2,546,5],[543,6,544,23],[543,24,544,26],[543,33,546,35],[545,6,546,23],[545,24,546,26],[539,2,542,5],[539,6,540,23],[539,24,540,26],[539,33,542,35],[541,6,542,23],[541,24,542,26],[532,33,532,35],[533,2,538,5],[533,6,534,23],[533,24,534,26],[533,33,538,35],[535,6,536,23],[535,24,536,26],[537,6,538,23],[537,24,538,26],[513,0,556,0],[515,15,527,31],[521,2,521,13],[522,2,523,13],[529,16,529,20],[530,10,530,11],[531,2,531,23],[532,2,532,5],[532,6,532,23],[532,24,532,26],[509,6,509,23],[509,24,509,26],[510,6,510,23],[510,24,510,26],[511,6,511,23],[511,24,511,26],[503,2,505,5],[503,6,505,23],[503,24,505,26],[503,33,505,35],[506,2,511,5],[506,6,506,23],[506,24,506,26],[506,33,511,35],[507,6,508,23],[507,24,508,26],[499,2,502,5],[499,6,500,23],[499,24,500,26],[499,33,502,35],[501,6,502,23],[501,24,502,26],[495,2,498,5],[495,6,496,23],[495,24,496,26],[495,33,498,35],[497,6,498,23],[497,24,498,26],[488,33,488,35],[489,2,494,5],[489,6,490,23],[489,24,490,26],[489,33,494,35],[491,6,492,23],[491,24,492,26],[493,6,494,23],[493,24,494,26],[473,0,512,0],[475,15,483,31],[481,2,481,13],[482,2,483,13],[485,16,485,20],[486,10,486,11],[487,2,487,23],[488,2,488,5],[488,6,488,23],[488,24,488,26],[469,6,469,23],[469,24,469,26],[470,6,470,23],[470,24,470,26],[471,6,471,23],[471,24,471,26],[463,2,465,5],[463,6,465,23],[463,24,465,26],[463,33,465,35],[466,2,471,5],[466,6,466,23],[466,24,466,26],[466,33,471,35],[467,6,468,23],[467,24,468,26],[459,2,462,5],[459,6,460,23],[459,24,460,26],[459,33,462,35],[461,6,462,23],[461,24,462,26],[455,2,458,5],[455,6,456,23],[455,24,456,26],[455,33,458,35],[457,6,458,23],[457,24,458,26],[448,33,448,35],[449,2,454,5],[449,6,450,23],[449,24,450,26],[449,33,454,35],[451,6,452,23],[451,24,452,26],[453,6,454,23],[453,24,454,26],[427,0,472,0],[429,15,443,31],[435,2,435,13],[436,2,436,13],[445,16,445,20],[446,10,446,11],[447,2,447,23],[448,2,448,5],[448,6,448,23],[448,24,448,26],[423,6,423,23],[423,24,423,26],[424,6,424,23],[424,24,424,26],[425,6,425,23],[425,24,425,26],[417,2,419,5],[417,6,419,23],[417,24,419,26],[417,33,419,35],[420,2,425,5],[420,6,420,23],[420,24,420,26],[420,33,425,35],[421,6,422,23],[421,24,422,26],[413,2,416,5],[413,6,414,23],[413,24,414,26],[413,33,416,35],[415,6,416,23],[415,24,416,26],[409,2,412,5],[409,6,410,23],[409,24,410,26],[409,33,412,35],[411,6,412,23],[411,24,412,26],[402,33,402,35],[403,2,408,5],[403,6,404,23],[403,24,404,26],[403,33,408,35],[405,6,406,23],[405,24,406,26],[407,6,408,23],[407,24,408,26],[382,0,426,0],[384,15,397,31],[390,2,390,13],[391,2,393,13],[399,16,399,20],[400,10,400,11],[401,2,401,23],[402,2,402,5],[402,6,402,23],[402,24,402,26],[378,6,378,23],[378,24,378,26],[379,6,379,23],[379,24,379,26],[380,6,380,23],[380,24,380,26],[372,2,374,5],[372,6,374,23],[372,24,374,26],[372,33,374,35],[375,2,380,5],[375,6,375,23],[375,24,375,26],[375,33,380,35],[376,6,377,23],[376,24,377,26],[368,2,371,5],[368,6,369,23],[368,24,369,26],[368,33,371,35],[370,6,371,23],[370,24,371,26],[364,2,367,5],[364,6,365,23],[364,24,365,26],[364,33,367,35],[366,6,367,23],[366,24,367,26],[357,33,357,35],[358,2,363,5],[358,6,359,23],[358,24,359,26],[358,33,363,35],[360,6,361,23],[360,24,361,26],[362,6,363,23],[362,24,363,26],[336,0,381,0],[338,15,352,31],[344,2,344,13],[345,2,347,13],[354,16,354,20],[355,10,355,11],[356,2,356,23],[357,2,357,5],[357,6,357,23],[357,24,357,26],[332,6,332,23],[332,24,332,26],[333,6,333,23],[333,24,333,26],[334,6,334,23],[334,24,334,26],[326,2,328,5],[326,6,328,23],[326,24,328,26],[326,33,328,35],[329,2,334,5],[329,6,329,23],[329,24,329,26],[329,33,334,35],[330,6,331,23],[330,24,331,26],[322,2,325,5],[322,6,323,23],[322,24,323,26],[322,33,325,35],[324,6,325,23],[324,24,325,26],[318,2,321,5],[318,6,319,23],[318,24,319,26],[318,33,321,35],[320,6,321,23],[320,24,321,26],[311,33,311,35],[312,2,317,5],[312,6,313,23],[312,24,313,26],[312,33,317,35],[314,6,315,23],[314,24,315,26],[316,6,317,23],[316,24,317,26],[288,0,335,0],[290,15,306,31],[296,2,296,13],[297,2,298,13],[308,16,308,20],[309,10,309,11],[310,2,310,23],[311,2,311,5],[311,6,311,23],[311,24,311,26],[284,6,284,23],[284,24,284,26],[285,6,285,23],[285,24,285,26],[286,6,286,23],[286,24,286,26],[278,2,280,5],[278,6,280,23],[278,24,280,26],[278,33,280,35],[281,2,286,5],[281,6,281,23],[281,24,281,26],[281,33,286,35],[282,6,283,23],[282,24,283,26],[274,2,277,5],[274,6,275,23],[274,24,275,26],[274,33,277,35],[276,6,277,23],[276,24,277,26],[270,2,273,5],[270,6,271,23],[270,24,271,26],[270,33,273,35],[272,6,273,23],[272,24,273,26],[263,33,263,35],[264,2,269,5],[264,6,265,23],[264,24,265,26],[264,33,269,35],[266,6,267,23],[266,24,267,26],[268,6,269,23],[268,24,269,26],[242,0,287,0],[244,15,258,31],[250,2,250,13],[251,2,252,13],[260,16,260,20],[261,10,261,11],[262,2,262,23],[263,2,263,5],[263,6,263,23],[263,24,263,26],[238,6,238,23],[238,24,238,26],[239,6,239,23],[239,24,239,26],[240,6,240,23],[240,24,240,26],[232,2,234,5],[232,6,234,23],[232,24,234,26],[232,33,234,35],[235,2,240,5],[235,6,235,23],[235,24,235,26],[235,33,240,35],[236,6,237,23],[236,24,237,26],[228,2,231,5],[228,6,229,23],[228,24,229,26],[228,33,231,35],[230,6,231,23],[230,24,231,26],[224,2,227,5],[224,6,225,23],[224,24,225,26],[224,33,227,35],[226,6,227,23],[226,24,227,26],[217,33,217,35],[218,2,223,5],[218,6,219,23],[218,24,219,26],[218,33,223,35],[220,6,221,23],[220,24,221,26],[222,6,223,23],[222,24,223,26],[190,0,241,0],[192,15,212,31],[198,2,198,13],[199,2,200,13],[214,16,214,20],[215,10,215,11],[216,2,216,23],[217,2,217,5],[217,6,217,23],[217,24,217,26],[186,6,186,23],[186,24,186,26],[187,6,187,23],[187,24,187,26],[188,6,188,23],[188,24,188,26],[180,2,182,5],[180,6,182,23],[180,24,182,26],[180,33,182,35],[183,2,188,5],[183,6,183,23],[183,24,183,26],[183,33,188,35],[184,6,185,23],[184,24,185,26],[176,2,179,5],[176,6,177,23],[176,24,177,26],[176,33,179,35],[178,6,179,23],[178,24,179,26],[172,2,175,5],[172,6,173,23],[172,24,173,26],[172,33,175,35],[174,6,175,23],[174,24,175,26],[165,33,165,35],[166,2,171,5],[166,6,167,23],[166,24,167,26],[166,33,171,35],[168,6,169,23],[168,24,169,26],[170,6,171,23],[170,24,171,26],[144,0,189,0],[146,15,160,31],[152,2,152,13],[153,2,155,13],[162,16,162,20],[163,10,163,11],[164,2,164,23],[165,2,165,5],[165,6,165,23],[165,24,165,26],[140,6,140,23],[140,24,140,26],[141,6,141,23],[141,24,141,26],[142,6,142,23],[142,24,142,26],[134,2,136,5],[134,6,136,23],[134,24,136,26],[134,33,136,35],[137,2,142,5],[137,6,137,23],[137,24,137,26],[137,33,142,35],[138,6,139,23],[138,24,139,26],[130,2,133,5],[130,6,131,23],[130,24,131,26],[130,33,133,35],[132,6,133,23],[132,24,133,26],[126,2,129,5],[126,6,127,23],[126,24,127,26],[126,33,129,35],[128,6,129,23],[128,24,129,26],[119,33,119,35],[120,2,125,5],[120,6,121,23],[120,24,121,26],[120,33,125,35],[122,6,123,23],[122,24,123,26],[124,6,125,23],[124,24,125,26],[101,0,143,0],[103,15,114,31],[109,2,109,13],[110,2,111,13],[116,16,116,20],[117,10,117,11],[118,2,118,23],[119,2,119,5],[119,6,119,23],[119,24,119,26],[97,6,97,23],[97,24,97,26],[98,6,98,23],[98,24,98,26],[99,6,99,23],[99,24,99,26],[91,2,93,5],[91,6,93,23],[91,24,93,26],[91,33,93,35],[94,2,99,5],[94,6,94,23],[94,24,94,26],[94,33,99,35],[95,6,96,23],[95,24,96,26],[87,2,90,5],[87,6,88,23],[87,24,88,26],[87,33,90,35],[89,6,90,23],[89,24,90,26],[83,2,86,5],[83,6,84,23],[83,24,84,26],[83,33,86,35],[85,6,86,23],[85,24,86,26],[76,33,76,35],[77,2,82,5],[77,6,78,23],[77,24,78,26],[77,33,82,35],[79,6,80,23],[79,24,80,26],[81,6,82,23],[81,24,82,26],[55,0,100,0],[57,15,71,31],[63,2,63,13],[64,2,64,13],[73,16,73,20],[74,10,74,11],[75,2,75,23],[76,2,76,5],[76,6,76,23],[76,24,76,26],[51,6,51,23],[51,24,51,26],[52,6,52,23],[52,24,52,26],[53,6,53,23],[53,24,53,26],[45,2,47,5],[45,6,47,23],[45,24,47,26],[45,33,47,35],[48,2,53,5],[48,6,48,23],[48,24,48,26],[48,33,53,35],[49,6,50,23],[49,24,50,26],[41,2,44,5],[41,6,42,23],[41,24,42,26],[41,33,44,35],[43,6,44,23],[43,24,44,26],[37,2,40,5],[37,6,38,23],[37,24,38,26],[37,33,40,35],[39,6,40,23],[39,24,40,26],[30,33,30,35],[31,2,36,5],[31,6,32,23],[31,24,32,26],[31,33,36,35],[33,6,34,23],[33,24,34,26],[35,6,36,23],[35,24,36,26],[8,0,54,0],[10,15,25,31],[15,2,15,13],[16,2,17,13],[27,16,27,20],[28,10,28,11],[29,2,29,23],[30,2,30,5],[30,6,30,23],[30,24,30,26]]}
[]
[]
[]
[]
[]
[]
[]
[]
[]
[]
[null,null,null,null,null,null,null,null,null,null,null,null,null,null,null,"Esencial para el desarrollo sostenible y la construcción de un mundo justo e inclusivo. La pobreza es un problema crónico con impacto negativo en la salud, la educación, el desarrollo económico, la vida y el bienestar en general. \nLograr alcanzar el ODS 1 ayudará a mejorar las condiciones de vida de las personas más pobres, aumentando el acceso a servicios básicos, el empleo, la inclusión financiera y la reducción de la desigualdad. Esto no solo mejorará su calidad de vida, sino que también fortalecerá la economía y contribuirá a la construcción de un mundo más justo e inclusivo. \nLa erradicación de la pobreza es un objetivo esencial para lograr los demás ODS. La pobreza es una de las principales razones de la exclusión social y la falta de acceso a servicios básicos, además de contribuir al aumento de los efectos negativos del cambio climático al limitar las posibilidades de las personas para adaptarse y resistir sus efectos."]
[]
[]
[]
[]
[null,null,"ODS"]
[null,null,"Poner fin a la pobreza en todas sus formas en todo el mundo"]
[]
[]
[]
[]
[]
[]
[]
[]
[]
[]
[null,null,"¿Está este ODS priorizado por su organización?",null,null,null,null,null,null,null,null,null,null,null,null,null,"Conteste acá",null,null,null,null,"Si la respuesta es \"Sí\", continúe"]
[null,null,null,null,null,null,null,null,null,null,null,null,null,null,null,null,null,null,null,null,null,"Si la respuesta es \"No\", pase al siguiente ODS"]
[null,null,"Sobre el anterior ODS:"]
[null,null,"Cualidad",null,null,null,"Preguntas",null,null,null,null,null,null,null,null,null,null,null,null,null,null,null,null,null,"Sí / No",null,null,null,null,null,null,null,null,"Promedio"]
[null,null,"Intencional",null,null,null,"¿Ha desarrollado una estrategia que refleje este compromiso, cubriendo las operaciones de extremo a extremo? ",null,null,null,null,null,null,null,null,null,null,null,null,null,null,null,null,null,null,null,null,null,null,null,null,null,{"$f":"IF(Y32=\"Sí\",1,\"\")","v":""},{"$f":"SUM(AG32:AG37)/3","v":0}]
[]
[null,null,null,null,null,null,"¿Está comprometido con aprender de sus acciones y cuenta con procesos para su mejora? ",null,null,null,null,null,null,null,null,null,null,null,null,null,null,null,null,null,null,null,null,null,null,null,null,null,{"$f":"IF(Y34=\"Sí\",1,\"\")","v":""}]
[]
[null,null,null,null,null,null,"¿Su estrategia está respaldada por los niveles más altos de administración, incluida la Junta Directiva?",null,null,null,null,null,null,null,null,null,null,null,null,null,null,null,null,null,null,null,null,null,null,null,null,null,{"$f":"IF(Y36=\"Sí\",1,\"\")","v":""}]
[]
[null,null,"Ambicioso",null,null,null,"¿Sus acciones logran resultados a largo plazo que superan en gran medida los resultados de las prácticas empresariales actuales?",null,null,null,null,null,null,null,null,null,null,null,null,null,null,null,null,null,null,null,null,null,null,null,null,null,{"$f":"IF(Y38=\"Sí\",1,\"\")","v":""},{"$f":"SUM(AG38:AG41)/2","v":0}]
[]
[null,null,null,null,null,null,"¿Están alineadas sus acciones con lo que se necesita para alcanzar este ODS?",null,null,null,null,null,null,null,null,null,null,null,null,null,null,null,null,null,null,null,null,null,null,null,null,null,{"$f":"IF(Y40=\"Sí\",1,\"\")","v":""}]
[]
[null,null,"Consistente",null,null,null,"¿El apoyo al ODS está incluido en todas las funciones de la organización?",null,null,null,null,null,null,null,null,null,null,null,null,null,null,null,null,null,null,null,null,null,null,null,null,null,{"$f":"IF(Y42=\"Sí\",1,\"\")","v":""},{"$f":"SUM(AG42:AG45)/2","v":0}]
[]
[null,null,null,null,null,null,"¿Los incentivos del personal y de los directivos están alineados con la acción de aportar al ODS?",null,null,null,null,null,null,null,null,null,null,null,null,null,null,null,null,null,null,null,null,null,null,null,null,null,{"$f":"IF(Y44=\"Sí\",1,\"\")","v":""}]
[]
[null,null,"Colaborativo",null,null,null,"¿Busca de forma proactiva oportunidades para asociarse con gobiernos, agencias de la ONU, proveedores, ONG, pares de la industria y otras partes interesadas para aumentar su avance hacia el Objetivo ?",null,null,null,null,null,null,null,null,null,null,null,null,null,null,null,null,null,null,null,null,null,null,null,null,null,{"$f":"IF(Y46=\"Sí\",1,\"\")","v":""},{"$f":"SUM(AG46:AG48)/1","v":0}]
[]
[]
[null,null,"Responsable",null,null,null,"¿Expresa públicamente su compromiso de avanzar en el ODS?",null,null,null,null,null,null,null,null,null,null,null,null,null,null,null,null,null,null,null,null,null,null,null,null,null,{"$f":"IF(Y49=\"Sí\",1,\"\")","v":""},{"$f":"SUM(AG49:AG54)/5","v":0}]
[null,null,null,null,null,null,"¿Identifica, monitorea e informa sobre los impactos, incluidos los impactos potencialmente adversos?",null,null,null,null,null,null,null,null,null,null,null,null,null,null,null,null,null,null,null,null,null,null,null,null,null,{"$f":"IF(Y50=\"Sí\",1,\"\")","v":""}]
[]
[null,null,null,null,null,null,"¿Mitiga los riesgos asociados con este Objetivo?",null,null,null,null,null,null,null,null,null,null,null,null,null,null,null,null,null,null,null,null,null,null,null,null,null,{"$f":"IF(Y52=\"Sí\",1,\"\")","v":""}]
[null,null,null,null,null,null,"¿Remedia los impactos negativos asociados con sus acciones?",null,null,null,null,null,null,null,null,null,null,null,null,null,null,null,null,null,null,null,null,null,null,null,null,null,{"$f":"IF(Y53=\"Sí\",1,\"\")","v":""}]
[null,null,null,null,null,null,"¿Involucra a los interesados de una manera significativa?",null,null,null,null,null,null,null,null,null,null,null,null,null,null,null,null,null,null,null,null,null,null,null,null,null,{"$f":"IF(Y54=\"Sí\",1,\"\")","v":""}]
[]
[]
[]
[null,null,null,null,null,null,null,null,null,null,null,null,null,null,null,"Esencial para garantizar un acceso equitativo y suficiente a alimentos nutritivos y seguros para todas las personas. Busca erradicar el hambre y la malnutrición, mejorar la seguridad alimentaria y nutricional, aumentar el acceso a alimentos nutritivos y suficientes, promover la agricultura sostenible y reducir el desperdicio de alimentos. \nAl lograrlo, se mejoraría la salud y el bienestar de las personas, se fortalecería la economía y se contribuiría a la construcción de un mundo más justo e inclusivo. \nEn caso contrario, la malnutrición tiene un impacto negativo en la salud, el desarrollo cognitivo y el rendimiento escolar limitando su capacidad para contribuir al desarrollo económico y social de la sociedad. Además, la falta de acceso a alimentos nutritivos y suficientes contribuye a la exclusión social y la falta de acceso a servicios básicos como educación y salud."]
[]
[]
[]
[]
[]
[null,null,"ODS"]
[null,null,"Poner fin al hambre"]
[]
[]
[]
[]
[]
[]
[]
[]
[null,null,"¿Está este ODS priorizado por su organización?",null,null,null,null,null,null,null,null,null,null,null,null,null,"Conteste acá",null,null,null,null,"Si la respuesta es \"Sí\", continúe"]
[null,null,null,null,null,null,null,null,null,null,null,null,null,null,null,null,null,null,null,null,null,"Si la respuesta es \"No\", pase al siguiente ODS"]
[null,null,"Sobre el anterior ODS:"]
[null,null,"Cualidad",null,null,null,"Preguntas",null,null,null,null,null,null,null,null,null,null,null,null,null,null,null,null,null,"Sí / No",null,null,null,null,null,null,null,null,"Promedio"]
[null,null,"Intencional",null,null,null,"¿Ha desarrollado una estrategia que refleje este compromiso, cubriendo las operaciones de extremo a extremo? ",null,null,null,null,null,null,null,null,null,null,null,null,null,null,null,null,null,null,null,null,null,null,null,null,null,{"$f":"IF(Y78=\"Sí\",1,\"\")","v":""},{"$f":"SUM(AG78:AG83)/3","v":0}]
[]
[null,null,null,null,null,null,"¿Está comprometido con aprender de sus acciones y cuenta con procesos para su mejora? ",null,null,null,null,null,null,null,null,null,null,null,null,null,null,null,null,null,null,null,null,null,null,null,null,null,{"$f":"IF(Y80=\"Sí\",1,\"\")","v":""}]
[]
[null,null,null,null,null,null,"¿Su estrategia está respaldada por los niveles más altos de administración, incluida la Junta Directiva?",null,null,null,null,null,null,null,null,null,null,null,null,null,null,null,null,null,null,null,null,null,null,null,null,null,{"$f":"IF(Y82=\"Sí\",1,\"\")","v":""}]
[]
[null,null,"Ambicioso",null,null,null,"¿Sus acciones logran resultados a largo plazo que superan en gran medida los resultados de las prácticas empresariales actuales?",null,null,null,null,null,null,null,null,null,null,null,null,null,null,null,null,null,null,null,null,null,null,null,null,null,{"$f":"IF(Y84=\"Sí\",1,\"\")","v":""},{"$f":"SUM(AG84:AG87)/2","v":0}]
[]
[null,null,null,null,null,null,"¿Están alineadas sus acciones con lo que se necesita para alcanzar este ODS?",null,null,null,null,null,null,null,null,null,null,null,null,null,null,null,null,null,null,null,null,null,null,null,null,null,{"$f":"IF(Y86=\"Sí\",1,\"\")","v":""}]
[]
[null,null,"Consistente",null,null,null,"¿El apoyo al ODS está incluido en todas las funciones de la organización?",null,null,null,null,null,null,null,null,null,null,null,null,null,null,null,null,null,null,null,null,null,null,null,null,null,{"$f":"IF(Y88=\"Sí\",1,\"\")","v":""},{"$f":"SUM(AG88:AG91)/2","v":0}]
[]
[null,null,null,null,null,null,"¿Los incentivos del personal y de los directivos están alineados con la acción de aportar al ODS?",null,null,null,null,null,null,null,null,null,null,null,null,null,null,null,null,null,null,null,null,null,null,null,null,null,{"$f":"IF(Y90=\"Sí\",1,\"\")","v":""}]
[]
[null,null,"Colaborativo",null,null,null,"¿Busca de forma proactiva oportunidades para asociarse con gobiernos, agencias de la ONU, proveedores, ONG, pares de la industria y otras partes interesadas para aumentar su avance hacia el Objetivo ?",null,null,null,null,null,null,null,null,null,null,null,null,null,null,null,null,null,null,null,null,null,null,null,null,null,{"$f":"IF(Y92=\"Sí\",1,\"\")","v":""},{"$f":"SUM(AG92:AG94)/1","v":0}]
[]
[]
[null,null,"Responsable",null,null,null,"¿Expresa públicamente su compromiso de avanzar en el ODS?",null,null,null,null,null,null,null,null,null,null,null,null,null,null,null,null,null,null,null,null,null,null,null,null,null,{"$f":"IF(Y95=\"Sí\",1,\"\")","v":""},{"$f":"SUM(AG95:AG100)/5","v":0}]
[null,null,null,null,null,null,"¿Identifica, monitorea e informa sobre los impactos, incluidos los impactos potencialmente adversos?",null,null,null,null,null,null,null,null,null,null,null,null,null,null,null,null,null,null,null,null,null,null,null,null,null,{"$f":"IF(Y96=\"Sí\",1,\"\")","v":""}]
[]
[null,null,null,null,null,null,"¿Mitiga los riesgos asociados con este Objetivo?",null,null,null,null,null,null,null,null,null,null,null,null,null,null,null,null,null,null,null,null,null,null,null,null,null,{"$f":"IF(Y98=\"Sí\",1,\"\")","v":""}]
[null,null,null,null,null,null,"¿Remedia los impactos negativos asociados con sus acciones?",null,null,null,null,null,null,null,null,null,null,null,null,null,null,null,null,null,null,null,null,null,null,null,null,null,{"$f":"IF(Y99=\"Sí\",1,\"\")","v":""}]
[null,null,null,null,null,null,"¿Involucra a los interesados de una manera significativa?",null,null,null,null,null,null,null,null,null,null,null,null,null,null,null,null,null,null,null,null,null,null,null,null,null,{"$f":"IF(Y100=\"Sí\",1,\"\")","v":""}]
[]
[]
[]
[null,null,null,null,null,null,null,null,null,null,null,null,null,null,null,"Su objetivo garantizar una vida sana y promover el bienestar para todas las personas, mediante la promoción de un estilo de vida saludable, la prevención y el control de enfermedades, la mejora de la accesibilidad y la calidad de la atención de la salud en todo el territorio nacional, incluyendo las áreas rurales y las zonas de mayor pobreza. También busca reducir la mortalidad infantil, mejorar la salud materna y garantizar la accesibilidad de los medicamentos y vacunas esenciales. \nLa salud es un derecho fundamental y una condición esencial para el desarrollo económico y social sostenible, puesto que una población sana es más productiva y tiene un mejor acceso a la educación, el trabajo y a los servicios básicos."]
[]
[]
[]
[]
[]
[null,null,"ODS"]
[null,null,"Garantizar una vida sana y promover el bienestar para todos en todas las edades"]
[]
[]
[]
[]
[]
[null,null,"¿Está este ODS priorizado por su organización?",null,null,null,null,null,null,null,null,null,null,null,null,null,"Conteste acá",null,null,null,null,"Si la respuesta es \"Sí\", continúe"]
[null,null,null,null,null,null,null,null,null,null,null,null,null,null,null,null,null,null,null,null,null,"Si la respuesta es \"No\", pase al siguiente ODS"]
[null,null,"Sobre el anterior ODS:"]
[null,null,"Cualidad",null,null,null,"Preguntas",null,null,null,null,null,null,null,null,null,null,null,null,null,null,null,null,null,"Sí / No",null,null,null,null,null,null,null,null,"Promedio"]
[null,null,"Intencional",null,null,null,"¿Ha desarrollado una estrategia que refleje este compromiso, cubriendo las operaciones de extremo a extremo? ",null,null,null,null,null,null,null,null,null,null,null,null,null,null,null,null,null,null,null,null,null,null,null,null,null,{"$f":"IF(Y121=\"Sí\",1,\"\")","v":""},{"$f":"SUM(AG121:AG126)/3","v":0}]
[]
[null,null,null,null,null,null,"¿Está comprometido con aprender de sus acciones y cuenta con procesos para su mejora? ",null,null,null,null,null,null,null,null,null,null,null,null,null,null,null,null,null,null,null,null,null,null,null,null,null,{"$f":"IF(Y123=\"Sí\",1,\"\")","v":""}]
[]
[null,null,null,null,null,null,"¿Su estrategia está respaldada por los niveles más altos de administración, incluida la Junta Directiva?",null,null,null,null,null,null,null,null,null,null,null,null,null,null,null,null,null,null,null,null,null,null,null,null,null,{"$f":"IF(Y125=\"Sí\",1,\"\")","v":""}]
[]
[null,null,"Ambicioso",null,null,null,"¿Sus acciones logran resultados a largo plazo que superan en gran medida los resultados de las prácticas empresariales actuales?",null,null,null,null,null,null,null,null,null,null,null,null,null,null,null,null,null,null,null,null,null,null,null,null,null,{"$f":"IF(Y127=\"Sí\",1,\"\")","v":""},{"$f":"SUM(AG127:AG130)/2","v":0}]
[]
[null,null,null,null,null,null,"¿Están alineadas sus acciones con lo que se necesita para alcanzar este ODS?",null,null,null,null,null,null,null,null,null,null,null,null,null,null,null,null,null,null,null,null,null,null,null,null,null,{"$f":"IF(Y129=\"Sí\",1,\"\")","v":""}]
[]
[null,null,"Consistente",null,null,null,"¿El apoyo al ODS está incluido en todas las funciones de la organización?",null,null,null,null,null,null,null,null,null,null,null,null,null,null,null,null,null,null,null,null,null,null,null,null,null,{"$f":"IF(Y131=\"Sí\",1,\"\")","v":""},{"$f":"SUM(AG131:AG134)/2","v":0}]
[]
[null,null,null,null,null,null,"¿Los incentivos del personal y de los directivos están alineados con la acción de aportar al ODS?",null,null,null,null,null,null,null,null,null,null,null,null,null,null,null,null,null,null,null,null,null,null,null,null,null,{"$f":"IF(Y133=\"Sí\",1,\"\")","v":""}]
[]
[null,null,"Colaborativo",null,null,null,"¿Busca de forma proactiva oportunidades para asociarse con gobiernos, agencias de la ONU, proveedores, ONG, pares de la industria y otras partes interesadas para aumentar su avance hacia el Objetivo ?",null,null,null,null,null,null,null,null,null,null,null,null,null,null,null,null,null,null,null,null,null,null,null,null,null,{"$f":"IF(Y135=\"Sí\",1,\"\")","v":""},{"$f":"SUM(AG135:AG137)/1","v":0}]
[]
[]
[null,null,"Responsable",null,null,null,"¿Expresa públicamente su compromiso de avanzar en el ODS?",null,null,null,null,null,null,null,null,null,null,null,null,null,null,null,null,null,null,null,null,null,null,null,null,null,{"$f":"IF(Y138=\"Sí\",1,\"\")","v":""},{"$f":"SUM(AG138:AG143)/5","v":0}]
[null,null,null,null,null,null,"¿Identifica, monitorea e informa sobre los impactos, incluidos los impactos potencialmente adversos?",null,null,null,null,null,null,null,null,null,null,null,null,null,null,null,null,null,null,null,null,null,null,null,null,null,{"$f":"IF(Y139=\"Sí\",1,\"\")","v":""}]
[]
[null,null,null,null,null,null,"¿Mitiga los riesgos asociados con este Objetivo?",null,null,null,null,null,null,null,null,null,null,null,null,null,null,null,null,null,null,null,null,null,null,null,null,null,{"$f":"IF(Y141=\"Sí\",1,\"\")","v":""}]
[null,null,null,null,null,null,"¿Remedia los impactos negativos asociados con sus acciones?",null,null,null,null,null,null,null,null,null,null,null,null,null,null,null,null,null,null,null,null,null,null,null,null,null,{"$f":"IF(Y142=\"Sí\",1,\"\")","v":""}]
[null,null,null,null,null,null,"¿Involucra a los interesados de una manera significativa?",null,null,null,null,null,null,null,null,null,null,null,null,null,null,null,null,null,null,null,null,null,null,null,null,null,{"$f":"IF(Y143=\"Sí\",1,\"\")","v":""}]
[]
[]
[]
[null,null,null,null,null,null,null,null,null,null,null,null,null,null,null,"Busca garantizar que todas las personas tengan acceso a educación de calidad e inclusiva, y a que se promuevan oportunidades de aprendizaje a lo largo del ciclo de vida. Para esto, busca asegurar que todos los niños y jóvenes completen la educación primaria y secundaria; se mejore la accesibilidad, inclusión y calidad de la educación para personas con discapacidades, personas en situación de pobreza, personas en zonas rurales y personas pertenecientes a grupos étnicos minoritarios; y los jóvenes y adultos tengan habilidades relevantes para el empleo, así como la mejora de la calidad en la formación técnica y profesional, entre otros. \nSu importancia radica en que la educación es un derecho fundamental esencial para el desarrollo personal y social que permite y facilita el desarrollo económico, la reducción de la pobreza, la promoción de la igualdad de género y la sostenibilidad ambiental."]
[]
[]
[]
[]
[]
[null,null,"ODS"]
[null,null,"Garantizar una educación inclusiva, equitativa y de calidad y promover oportunidades de aprendizaje durante toda la vida para todos"]
[]
[]
[]
[]
[]
[]
[]
[]
[null,null,"¿Está este ODS priorizado por su organización?",null,null,null,null,null,null,null,null,null,null,null,null,null,"Conteste acá",null,null,null,null,"Si la respuesta es \"Sí\", continúe"]
[null,null,null,null,null,null,null,null,null,null,null,null,null,null,null,null,null,null,null,null,null,"Si la respuesta es \"No\", pase al siguiente ODS"]
[null,null,"Sobre el anterior ODS:"]
[null,null,"Cualidad",null,null,null,"Preguntas",null,null,null,null,null,null,null,null,null,null,null,null,null,null,null,null,null,"Sí / No",null,null,null,null,null,null,null,null,"Promedio"]
[null,null,"Intencional",null,null,null,"¿Ha desarrollado una estrategia que refleje este compromiso, cubriendo las operaciones de extremo a extremo? ",null,null,null,null,null,null,null,null,null,null,null,null,null,null,null,null,null,null,null,null,null,null,null,null,null,{"$f":"IF(Y167=\"Sí\",1,\"\")","v":""},{"$f":"SUM(AG167:AG172)/3","v":0}]
[]
[null,null,null,null,null,null,"¿Está comprometido con aprender de sus acciones y cuenta con procesos para su mejora? ",null,null,null,null,null,null,null,null,null,null,null,null,null,null,null,null,null,null,null,null,null,null,null,null,null,{"$f":"IF(Y169=\"Sí\",1,\"\")","v":""}]
[]
[null,null,null,null,null,null,"¿Su estrategia está respaldada por los niveles más altos de administración, incluida la Junta Directiva?",null,null,null,null,null,null,null,null,null,null,null,null,null,null,null,null,null,null,null,null,null,null,null,null,null,{"$f":"IF(Y171=\"Sí\",1,\"\")","v":""}]
[]
[null,null,"Ambicioso",null,null,null,"¿Sus acciones logran resultados a largo plazo que superan en gran medida los resultados de las prácticas empresariales actuales?",null,null,null,null,null,null,null,null,null,null,null,null,null,null,null,null,null,null,null,null,null,null,null,null,null,{"$f":"IF(Y173=\"Sí\",1,\"\")","v":""},{"$f":"SUM(AG173:AG176)/2","v":0}]
[]
[null,null,null,null,null,null,"¿Están alineadas sus acciones con lo que se necesita para alcanzar este ODS?",null,null,null,null,null,null,null,null,null,null,null,null,null,null,null,null,null,null,null,null,null,null,null,null,null,{"$f":"IF(Y175=\"Sí\",1,\"\")","v":""}]
[]
[null,null,"Consistente",null,null,null,"¿El apoyo al ODS está incluido en todas las funciones de la organización?",null,null,null,null,null,null,null,null,null,null,null,null,null,null,null,null,null,null,null,null,null,null,null,null,null,{"$f":"IF(Y177=\"Sí\",1,\"\")","v":""},{"$f":"SUM(AG177:AG180)/2","v":0}]
[]
[null,null,null,null,null,null,"¿Los incentivos del personal y de los directivos están alineados con la acción de aportar al ODS?",null,null,null,null,null,null,null,null,null,null,null,null,null,null,null,null,null,null,null,null,null,null,null,null,null,{"$f":"IF(Y179=\"Sí\",1,\"\")","v":""}]
[]
[null,null,"Colaborativo",null,null,null,"¿Busca de forma proactiva oportunidades para asociarse con gobiernos, agencias de la ONU, proveedores, ONG, pares de la industria y otras partes interesadas para aumentar su avance hacia el Objetivo ?",null,null,null,null,null,null,null,null,null,null,null,null,null,null,null,null,null,null,null,null,null,null,null,null,null,{"$f":"IF(Y181=\"Sí\",1,\"\")","v":""},{"$f":"SUM(AG181:AG183)/1","v":0}]
[]
[]
[null,null,"Responsable",null,null,null,"¿Expresa públicamente su compromiso de avanzar en el ODS?",null,null,null,null,null,null,null,null,null,null,null,null,null,null,null,null,null,null,null,null,null,null,null,null,null,{"$f":"IF(Y184=\"Sí\",1,\"\")","v":""},{"$f":"SUM(AG184:AG189)/5","v":0}]
[null,null,null,null,null,null,"¿Identifica, monitorea e informa sobre los impactos, incluidos los impactos potencialmente adversos?",null,null,null,null,null,null,null,null,null,null,null,null,null,null,null,null,null,null,null,null,null,null,null,null,null,{"$f":"IF(Y185=\"Sí\",1,\"\")","v":""}]
[]
[null,null,null,null,null,null,"¿Mitiga los riesgos asociados con este Objetivo?",null,null,null,null,null,null,null,null,null,null,null,null,null,null,null,null,null,null,null,null,null,null,null,null,null,{"$f":"IF(Y187=\"Sí\",1,\"\")","v":""}]
[null,null,null,null,null,null,"¿Remedia los impactos negativos asociados con sus acciones?",null,null,null,null,null,null,null,null,null,null,null,null,null,null,null,null,null,null,null,null,null,null,null,null,null,{"$f":"IF(Y188=\"Sí\",1,\"\")","v":""}]
[null,null,null,null,null,null,"¿Involucra a los interesados de una manera significativa?",null,null,null,null,null,null,null,null,null,null,null,null,null,null,null,null,null,null,null,null,null,null,null,null,null,{"$f":"IF(Y189=\"Sí\",1,\"\")","v":""}]
[]
[]
[]
[null,null,null,null,null,null,null,null,null,null,null,null,null,null,null,"Busca poner fin a todas las formas de discriminación contra las mujeres y niñas en todas partes y promover la igualdad de género y el empoderamiento de las mujeres. \nPara ello, busca eliminar todas las formas de violencia contra las mujeres y niñas, eliminar las brechas de género en el acceso a la educación y el empleo, asegurar la participación plena y efectiva de las mujeres en la toma de decisiones políticas y económicas y, entre otras, garantizar el acceso universal a servicios de salud sexual y reproductiva. \nSu importancia radica en que la igualdad de género  es esencial para alcanzar un desarrollo sostenible y justo para todos. En efecto, el Informe de Desarrollo Humano 2020 de las Naciones Unidas, destaca que la discriminación y la desigualdad de género son obstáculos fundamentales para el desarrollo humano y su cumplimiento, son una condición necesaria para el logro de los demás ODS. \nAdemás destaca que la discriminación y la desigualdad ocasionan impactos negativos en la economía, la política y la sociedad en general, y que la promoción de la igualdad de género puede aumentar la productividad, mejorar la salud y la educación, y reducir la pobreza y la desigualdad."]
[]
[]
[]
[]
[]
[null,null,"ODS"]
[null,null,"Lograr la igualdad entre los géneros y empoderar a todas las mujeres y las niñas"]
[]
[]
[]
[]
[]
[]
[]
[]
[]
[]
[]
[]
[]
[]
[null,null,"¿Está este ODS priorizado por su organización?",null,null,null,null,null,null,null,null,null,null,null,null,null,"Conteste acá",null,null,null,null,"Si la respuesta es \"Sí\", continúe"]
[null,null,null,null,null,null,null,null,null,null,null,null,null,null,null,null,null,null,null,null,null,"Si la respuesta es \"No\", pase al siguiente ODS"]
[null,null,"Sobre el anterior ODS:"]
[null,null,"Cualidad",null,null,null,"Preguntas",null,null,null,null,null,null,null,null,null,null,null,null,null,null,null,null,null,"Sí / No",null,null,null,null,null,null,null,null,"Promedio"]
[null,null,"Intencional",null,null,null,"¿Ha desarrollado una estrategia que refleje este compromiso, cubriendo las operaciones de extremo a extremo? ",null,null,null,null,null,null,null,null,null,null,null,null,null,null,null,null,null,null,null,null,null,null,null,null,null,{"$f":"IF(Y219=\"Sí\",1,\"\")","v":""},{"$f":"SUM(AG219:AG224)/3","v":0}]
[]
[null,null,null,null,null,null,"¿Está comprometido con aprender de sus acciones y cuenta con procesos para su mejora? ",null,null,null,null,null,null,null,null,null,null,null,null,null,null,null,null,null,null,null,null,null,null,null,null,null,{"$f":"IF(Y221=\"Sí\",1,\"\")","v":""}]
[]
[null,null,null,null,null,null,"¿Su estrategia está respaldada por los niveles más altos de administración, incluida la Junta Directiva?",null,null,null,null,null,null,null,null,null,null,null,null,null,null,null,null,null,null,null,null,null,null,null,null,null,{"$f":"IF(Y223=\"Sí\",1,\"\")","v":""}]
[]
[null,null,"Ambicioso",null,null,null,"¿Sus acciones logran resultados a largo plazo que superan en gran medida los resultados de las prácticas empresariales actuales?",null,null,null,null,null,null,null,null,null,null,null,null,null,null,null,null,null,null,null,null,null,null,null,null,null,{"$f":"IF(Y225=\"Sí\",1,\"\")","v":""},{"$f":"SUM(AG225:AG228)/2","v":0}]
[]
[null,null,null,null,null,null,"¿Están alineadas sus acciones con lo que se necesita para alcanzar este ODS?",null,null,null,null,null,null,null,null,null,null,null,null,null,null,null,null,null,null,null,null,null,null,null,null,null,{"$f":"IF(Y227=\"Sí\",1,\"\")","v":""}]
[]
[null,null,"Consistente",null,null,null,"¿El apoyo al ODS está incluido en todas las funciones de la organización?",null,null,null,null,null,null,null,null,null,null,null,null,null,null,null,null,null,null,null,null,null,null,null,null,null,{"$f":"IF(Y229=\"Sí\",1,\"\")","v":""},{"$f":"SUM(AG229:AG232)/2","v":0}]
[]
[null,null,null,null,null,null,"¿Los incentivos del personal y de los directivos están alineados con la acción de aportar al ODS?",null,null,null,null,null,null,null,null,null,null,null,null,null,null,null,null,null,null,null,null,null,null,null,null,null,{"$f":"IF(Y231=\"Sí\",1,\"\")","v":""}]
[]
[null,null,"Colaborativo",null,null,null,"¿Busca de forma proactiva oportunidades para asociarse con gobiernos, agencias de la ONU, proveedores, ONG, pares de la industria y otras partes interesadas para aumentar su avance hacia el Objetivo ?",null,null,null,null,null,null,null,null,null,null,null,null,null,null,null,null,null,null,null,null,null,null,null,null,null,{"$f":"IF(Y233=\"Sí\",1,\"\")","v":""},{"$f":"SUM(AG233:AG235)/1","v":0}]
[]
[]
[null,null,"Responsable",null,null,null,"¿Expresa públicamente su compromiso de avanzar en el ODS?",null,null,null,null,null,null,null,null,null,null,null,null,null,null,null,null,null,null,null,null,null,null,null,null,null,{"$f":"IF(Y236=\"Sí\",1,\"\")","v":""},{"$f":"SUM(AG236:AG241)/5","v":0}]
[null,null,null,null,null,null,"¿Identifica, monitorea e informa sobre los impactos, incluidos los impactos potencialmente adversos?",null,null,null,null,null,null,null,null,null,null,null,null,null,null,null,null,null,null,null,null,null,null,null,null,null,{"$f":"IF(Y237=\"Sí\",1,\"\")","v":""}]
[]
[null,null,null,null,null,null,"¿Mitiga los riesgos asociados con este Objetivo?",null,null,null,null,null,null,null,null,null,null,null,null,null,null,null,null,null,null,null,null,null,null,null,null,null,{"$f":"IF(Y239=\"Sí\",1,\"\")","v":""}]
[null,null,null,null,null,null,"¿Remedia los impactos negativos asociados con sus acciones?",null,null,null,null,null,null,null,null,null,null,null,null,null,null,null,null,null,null,null,null,null,null,null,null,null,{"$f":"IF(Y240=\"Sí\",1,\"\")","v":""}]
[null,null,null,null,null,null,"¿Involucra a los interesados de una manera significativa?",null,null,null,null,null,null,null,null,null,null,null,null,null,null,null,null,null,null,null,null,null,null,null,null,null,{"$f":"IF(Y241=\"Sí\",1,\"\")","v":""}]
[]
[]
[]
[null,null,null,null,null,null,null,null,null,null,null,null,null,null,null,"Busca garantizar el acceso al agua limpia y saneamiento para todos y mejorar la gestión del agua para sus usos en agricultura, la industria, la generación de energía o cualquier otro. Además de que el agua es esencial para la vida, el acceso al agua potable y al saneamiento son derechos humanos básicos esenciales para la salud, la educación, la producción de alimentos y la economía en general.\nEl acceso al agua limpia y saneamiento es un desafío importante en el país, puesto que, aunque Colombia tiene una gran variedad de recursos hídricos, el acceso al agua potable y al saneamiento sigue siendo limitado en algunas regiones del país, especialmente en áreas rurales y para las comunidades más pobres. Así mismo, se detallan problemas de contaminación del agua en zonas urbanas del país y cuencas hidrográficas. Sumado a ello, en diferentes zonas del país persisten problemas de sequías e inundaciones. "]
[]
[]
[]
[]
[]
[null,null,"ODS"]
[null,null,"Garantizar la disponibilidad de agua y su gestión sostenible y el saneamiento para todos"]
[]
[]
[]
[]
[]
[]
[]
[]
[null,null,"¿Está este ODS priorizado por su organización?",null,null,null,null,null,null,null,null,null,null,null,null,null,"Conteste acá",null,null,null,null,"Si la respuesta es \"Sí\", continúe"]
[null,null,null,null,null,null,null,null,null,null,null,null,null,null,null,null,null,null,null,null,null,"Si la respuesta es \"No\", pase al siguiente ODS"]
[null,null,"Sobre el anterior ODS:"]
[null,null,"Cualidad",null,null,null,"Preguntas",null,null,null,null,null,null,null,null,null,null,null,null,null,null,null,null,null,"Sí / No",null,null,null,null,null,null,null,null,"Promedio"]
[null,null,"Intencional",null,null,null,"¿Ha desarrollado una estrategia que refleje este compromiso, cubriendo las operaciones de extremo a extremo? ",null,null,null,null,null,null,null,null,null,null,null,null,null,null,null,null,null,null,null,null,null,null,null,null,null,{"$f":"IF(Y265=\"Sí\",1,\"\")","v":""},{"$f":"SUM(AG265:AG270)/3","v":0}]
[]
[null,null,null,null,null,null,"¿Está comprometido con aprender de sus acciones y cuenta con procesos para su mejora? ",null,null,null,null,null,null,null,null,null,null,null,null,null,null,null,null,null,null,null,null,null,null,null,null,null,{"$f":"IF(Y267=\"Sí\",1,\"\")","v":""}]
[]
[null,null,null,null,null,null,"¿Su estrategia está respaldada por los niveles más altos de administración, incluida la Junta Directiva?",null,null,null,null,null,null,null,null,null,null,null,null,null,null,null,null,null,null,null,null,null,null,null,null,null,{"$f":"IF(Y269=\"Sí\",1,\"\")","v":""}]
[]
[null,null,"Ambicioso",null,null,null,"¿Sus acciones logran resultados a largo plazo que superan en gran medida los resultados de las prácticas empresariales actuales?",null,null,null,null,null,null,null,null,null,null,null,null,null,null,null,null,null,null,null,null,null,null,null,null,null,{"$f":"IF(Y271=\"Sí\",1,\"\")","v":""},{"$f":"SUM(AG271:AG274)/2","v":0}]
[]
[null,null,null,null,null,null,"¿Están alineadas sus acciones con lo que se necesita para alcanzar este ODS?",null,null,null,null,null,null,null,null,null,null,null,null,null,null,null,null,null,null,null,null,null,null,null,null,null,{"$f":"IF(Y273=\"Sí\",1,\"\")","v":""}]
[]
[null,null,"Consistente",null,null,null,"¿El apoyo al ODS está incluido en todas las funciones de la organización?",null,null,null,null,null,null,null,null,null,null,null,null,null,null,null,null,null,null,null,null,null,null,null,null,null,{"$f":"IF(Y275=\"Sí\",1,\"\")","v":""},{"$f":"SUM(AG275:AG278)/2","v":0}]
[]
[null,null,null,null,null,null,"¿Los incentivos del personal y de los directivos están alineados con la acción de aportar al ODS?",null,null,null,null,null,null,null,null,null,null,null,null,null,null,null,null,null,null,null,null,null,null,null,null,null,{"$f":"IF(Y277=\"Sí\",1,\"\")","v":""}]
[]
[null,null,"Colaborativo",null,null,null,"¿Busca de forma proactiva oportunidades para asociarse con gobiernos, agencias de la ONU, proveedores, ONG, pares de la industria y otras partes interesadas para aumentar su avance hacia el Objetivo ?",null,null,null,null,null,null,null,null,null,null,null,null,null,null,null,null,null,null,null,null,null,null,null,null,null,{"$f":"IF(Y279=\"Sí\",1,\"\")","v":""},{"$f":"SUM(AG279:AG281)/1","v":0}]
[]
[]
[null,null,"Responsable",null,null,null,"¿Expresa públicamente su compromiso de avanzar en el ODS?",null,null,null,null,null,null,null,null,null,null,null,null,null,null,null,null,null,null,null,null,null,null,null,null,null,{"$f":"IF(Y282=\"Sí\",1,\"\")","v":""},{"$f":"SUM(AG282:AG287)/5","v":0}]
[null,null,null,null,null,null,"¿Identifica, monitorea e informa sobre los impactos, incluidos los impactos potencialmente adversos?",null,null,null,null,null,null,null,null,null,null,null,null,null,null,null,null,null,null,null,null,null,null,null,null,null,{"$f":"IF(Y283=\"Sí\",1,\"\")","v":""}]
[]
[null,null,null,null,null,null,"¿Mitiga los riesgos asociados con este Objetivo?",null,null,null,null,null,null,null,null,null,null,null,null,null,null,null,null,null,null,null,null,null,null,null,null,null,{"$f":"IF(Y285=\"Sí\",1,\"\")","v":""}]
[null,null,null,null,null,null,"¿Remedia los impactos negativos asociados con sus acciones?",null,null,null,null,null,null,null,null,null,null,null,null,null,null,null,null,null,null,null,null,null,null,null,null,null,{"$f":"IF(Y286=\"Sí\",1,\"\")","v":""}]
[null,null,null,null,null,null,"¿Involucra a los interesados de una manera significativa?",null,null,null,null,null,null,null,null,null,null,null,null,null,null,null,null,null,null,null,null,null,null,null,null,null,{"$f":"IF(Y287=\"Sí\",1,\"\")","v":""}]
[]
[]
[]
[null,null,null,null,null,null,null,null,null,null,null,null,null,null,null,"Busca garantizar el acceso universal a servicios energéticos asequibles, fiables, sostenibles y modernos, y aumentar la utilización de energías limpias y renovables. \nLa energía es esencial para el desarrollo económico y social, pues sin acceso a servicios energéticos asequibles y modernos, es difícil mejorar la calidad de vida de las personas.\nEl desarrollo de una infraestructura energética que emplee fuentes de energía limpias y renovables es esencial para el desarrollo sostenible y resulta fundamental para mitigar los cambios climáticos y proteger el medioambiente. \nEn Colombia, el acceso a servicios energéticos asequibles y modernos sigue siendo limitado en algunas regiones, especialmente áreas rurales y comunidades más pobres. Ello, a pesar de contar con un gran potencial para desarrollar fuentes de energía limpia y renovable, por lo que se debe promover su utilización, logrando reducir la dependencia a los combustibles fósiles, lo que protege el medioambiente y mitiga efectos del cambio climático."]
[]
[]
[]
[]
[]
[null,null,"ODS"]
[null,null,"Garantizar el acceso a una energía asequible, segura, sostenible y moderna"]
[]
[]
[]
[]
[]
[]
[]
[]
[]
[]
[null,null,"¿Está este ODS priorizado por su organización?",null,null,null,null,null,null,null,null,null,null,null,null,null,"Conteste acá",null,null,null,null,"Si la respuesta es \"Sí\", continúe"]
[null,null,null,null,null,null,null,null,null,null,null,null,null,null,null,null,null,null,null,null,null,"Si la respuesta es \"No\", pase al siguiente ODS"]
[null,null,"Sobre el anterior ODS:"]
[null,null,"Cualidad",null,null,null,"Preguntas",null,null,null,null,null,null,null,null,null,null,null,null,null,null,null,null,null,"Sí / No",null,null,null,null,null,null,null,null,"Promedio"]
[null,null,"Intencional",null,null,null,"¿Ha desarrollado una estrategia que refleje este compromiso, cubriendo las operaciones de extremo a extremo? ",null,null,null,null,null,null,null,null,null,null,null,null,null,null,null,null,null,null,null,null,null,null,null,null,null,{"$f":"IF(Y313=\"Sí\",1,\"\")","v":""},{"$f":"SUM(AG313:AG318)/3","v":0}]
[]
[null,null,null,null,null,null,"¿Está comprometido con aprender de sus acciones y cuenta con procesos para su mejora? ",null,null,null,null,null,null,null,null,null,null,null,null,null,null,null,null,null,null,null,null,null,null,null,null,null,{"$f":"IF(Y315=\"Sí\",1,\"\")","v":""}]
[]
[null,null,null,null,null,null,"¿Su estrategia está respaldada por los niveles más altos de administración, incluida la Junta Directiva?",null,null,null,null,null,null,null,null,null,null,null,null,null,null,null,null,null,null,null,null,null,null,null,null,null,{"$f":"IF(Y317=\"Sí\",1,\"\")","v":""}]
[]
[null,null,"Ambicioso",null,null,null,"¿Sus acciones logran resultados a largo plazo que superan en gran medida los resultados de las prácticas empresariales actuales?",null,null,null,null,null,null,null,null,null,null,null,null,null,null,null,null,null,null,null,null,null,null,null,null,null,{"$f":"IF(Y319=\"Sí\",1,\"\")","v":""},{"$f":"SUM(AG319:AG322)/2","v":0}]
[]
[null,null,null,null,null,null,"¿Están alineadas sus acciones con lo que se necesita para alcanzar este ODS?",null,null,null,null,null,null,null,null,null,null,null,null,null,null,null,null,null,null,null,null,null,null,null,null,null,{"$f":"IF(Y321=\"Sí\",1,\"\")","v":""}]
[]
[null,null,"Consistente",null,null,null,"¿El apoyo al ODS está incluido en todas las funciones de la organización?",null,null,null,null,null,null,null,null,null,null,null,null,null,null,null,null,null,null,null,null,null,null,null,null,null,{"$f":"IF(Y323=\"Sí\",1,\"\")","v":""},{"$f":"SUM(AG323:AG326)/2","v":0}]
[]
[null,null,null,null,null,null,"¿Los incentivos del personal y de los directivos están alineados con la acción de aportar al ODS?",null,null,null,null,null,null,null,null,null,null,null,null,null,null,null,null,null,null,null,null,null,null,null,null,null,{"$f":"IF(Y325=\"Sí\",1,\"\")","v":""}]
[]
[null,null,"Colaborativo",null,null,null,"¿Busca de forma proactiva oportunidades para asociarse con gobiernos, agencias de la ONU, proveedores, ONG, pares de la industria y otras partes interesadas para aumentar su avance hacia el Objetivo ?",null,null,null,null,null,null,null,null,null,null,null,null,null,null,null,null,null,null,null,null,null,null,null,null,null,{"$f":"IF(Y327=\"Sí\",1,\"\")","v":""},{"$f":"SUM(AG327:AG329)/1","v":0}]
[]
[]
[null,null,"Responsable",null,null,null,"¿Expresa públicamente su compromiso de avanzar en el ODS?",null,null,null,null,null,null,null,null,null,null,null,null,null,null,null,null,null,null,null,null,null,null,null,null,null,{"$f":"IF(Y330=\"Sí\",1,\"\")","v":""},{"$f":"SUM(AG330:AG335)/5","v":0}]
[null,null,null,null,null,null,"¿Identifica, monitorea e informa sobre los impactos, incluidos los impactos potencialmente adversos?",null,null,null,null,null,null,null,null,null,null,null,null,null,null,null,null,null,null,null,null,null,null,null,null,null,{"$f":"IF(Y331=\"Sí\",1,\"\")","v":""}]
[]
[null,null,null,null,null,null,"¿Mitiga los riesgos asociados con este Objetivo?",null,null,null,null,null,null,null,null,null,null,null,null,null,null,null,null,null,null,null,null,null,null,null,null,null,{"$f":"IF(Y333=\"Sí\",1,\"\")","v":""}]
[null,null,null,null,null,null,"¿Remedia los impactos negativos asociados con sus acciones?",null,null,null,null,null,null,null,null,null,null,null,null,null,null,null,null,null,null,null,null,null,null,null,null,null,{"$f":"IF(Y334=\"Sí\",1,\"\")","v":""}]
[null,null,null,null,null,null,"¿Involucra a los interesados de una manera significativa?",null,null,null,null,null,null,null,null,null,null,null,null,null,null,null,null,null,null,null,null,null,null,null,null,null,{"$f":"IF(Y335=\"Sí\",1,\"\")","v":""}]
[]
[]
[]
[null,null,null,null,null,null,null,null,null,null,null,null,null,null,null,"Tiene como objetivo mejorar la situación económica de las personas mediante la promoción de políticas y prácticas sostenibles e inclusivas, reduciendo la desigualdad económica y mejorando el acceso al empleo. Específicamente, al fomentar el empleo pleno, digno y productivo, este ODS contribuye a mejorar las condiciones laborales de la población, especialmente en un país como Colombia que enfrenta altas tasas de desempleo e informalidad laboral. \nAdemás, aunque Colombia tiene una rica oferta de recursos naturales y un gran potencial para el desarrollo sostenible, ha enfrentado problemas como la deforestación, la pérdida de biodiversidad y la explotación de recursos naturales, lo que ha generado problemas ambientales. Por ello, es crucial para el país promover el crecimiento económico, pero de una manera sostenible que permita proteger los recursos naturales y mejorar la relación entre el desarrollo económico y el medioambiente. "]
[]
[]
[]
[]
[]
[null,null,"ODS"]
[null,null,"Promover el crecimiento económico inclusivo y sostenible, el empleo y el trabajo decente para todos"]
[]
[]
[]
[]
[]
[]
[]
[]
[null,null,"¿Está este ODS priorizado por su organización?",null,null,null,null,null,null,null,null,null,null,null,null,null,"Conteste acá",null,null,null,null,"Si la respuesta es \"Sí\", continúe"]
[null,null,null,null,null,null,null,null,null,null,null,null,null,null,null,null,null,null,null,null,null,"Si la respuesta es \"No\", pase al siguiente ODS"]
[null,null,"Sobre el anterior ODS:"]
[null,null,"Cualidad",null,null,null,"Preguntas",null,null,null,null,null,null,null,null,null,null,null,null,null,null,null,null,null,"Sí / No",null,null,null,null,null,null,null,null,"Promedio"]
[null,null,"Intencional",null,null,null,"¿Ha desarrollado una estrategia que refleje este compromiso, cubriendo las operaciones de extremo a extremo? ",null,null,null,null,null,null,null,null,null,null,null,null,null,null,null,null,null,null,null,null,null,null,null,null,null,{"$f":"IF(Y359=\"Sí\",1,\"\")","v":""},{"$f":"SUM(AG359:AG364)/3","v":0}]
[]
[null,null,null,null,null,null,"¿Está comprometido con aprender de sus acciones y cuenta con procesos para su mejora? ",null,null,null,null,null,null,null,null,null,null,null,null,null,null,null,null,null,null,null,null,null,null,null,null,null,{"$f":"IF(Y361=\"Sí\",1,\"\")","v":""}]
[]
[null,null,null,null,null,null,"¿Su estrategia está respaldada por los niveles más altos de administración, incluida la Junta Directiva?",null,null,null,null,null,null,null,null,null,null,null,null,null,null,null,null,null,null,null,null,null,null,null,null,null,{"$f":"IF(Y363=\"Sí\",1,\"\")","v":""}]
[]
[null,null,"Ambicioso",null,null,null,"¿Sus acciones logran resultados a largo plazo que superan en gran medida los resultados de las prácticas empresariales actuales?",null,null,null,null,null,null,null,null,null,null,null,null,null,null,null,null,null,null,null,null,null,null,null,null,null,{"$f":"IF(Y365=\"Sí\",1,\"\")","v":""},{"$f":"SUM(AG365:AG368)/2","v":0}]
[]
[null,null,null,null,null,null,"¿Están alineadas sus acciones con lo que se necesita para alcanzar este ODS?",null,null,null,null,null,null,null,null,null,null,null,null,null,null,null,null,null,null,null,null,null,null,null,null,null,{"$f":"IF(Y367=\"Sí\",1,\"\")","v":""}]
[]
[null,null,"Consistente",null,null,null,"¿El apoyo al ODS está incluido en todas las funciones de la organización?",null,null,null,null,null,null,null,null,null,null,null,null,null,null,null,null,null,null,null,null,null,null,null,null,null,{"$f":"IF(Y369=\"Sí\",1,\"\")","v":""},{"$f":"SUM(AG369:AG372)/2","v":0}]
[]
[null,null,null,null,null,null,"¿Los incentivos del personal y de los directivos están alineados con la acción de aportar al ODS?",null,null,null,null,null,null,null,null,null,null,null,null,null,null,null,null,null,null,null,null,null,null,null,null,null,{"$f":"IF(Y371=\"Sí\",1,\"\")","v":""}]
[]
[null,null,"Colaborativo",null,null,null,"¿Busca de forma proactiva oportunidades para asociarse con gobiernos, agencias de la ONU, proveedores, ONG, pares de la industria y otras partes interesadas para aumentar su avance hacia el Objetivo ?",null,null,null,null,null,null,null,null,null,null,null,null,null,null,null,null,null,null,null,null,null,null,null,null,null,{"$f":"IF(Y373=\"Sí\",1,\"\")","v":""},{"$f":"SUM(AG373:AG375)/1","v":0}]
[]
[]
[null,null,"Responsable",null,null,null,"¿Expresa públicamente su compromiso de avanzar en el ODS?",null,null,null,null,null,null,null,null,null,null,null,null,null,null,null,null,null,null,null,null,null,null,null,null,null,{"$f":"IF(Y376=\"Sí\",1,\"\")","v":""},{"$f":"SUM(AG376:AG381)/5","v":0}]
[null,null,null,null,null,null,"¿Identifica, monitorea e informa sobre los impactos, incluidos los impactos potencialmente adversos?",null,null,null,null,null,null,null,null,null,null,null,null,null,null,null,null,null,null,null,null,null,null,null,null,null,{"$f":"IF(Y377=\"Sí\",1,\"\")","v":""}]
[]
[null,null,null,null,null,null,"¿Mitiga los riesgos asociados con este Objetivo?",null,null,null,null,null,null,null,null,null,null,null,null,null,null,null,null,null,null,null,null,null,null,null,null,null,{"$f":"IF(Y379=\"Sí\",1,\"\")","v":""}]
[null,null,null,null,null,null,"¿Remedia los impactos negativos asociados con sus acciones?",null,null,null,null,null,null,null,null,null,null,null,null,null,null,null,null,null,null,null,null,null,null,null,null,null,{"$f":"IF(Y380=\"Sí\",1,\"\")","v":""}]
[null,null,null,null,null,null,"¿Involucra a los interesados de una manera significativa?",null,null,null,null,null,null,null,null,null,null,null,null,null,null,null,null,null,null,null,null,null,null,null,null,null,{"$f":"IF(Y381=\"Sí\",1,\"\")","v":""}]
[]
[]
[]
[null,null,null,null,null,null,null,null,null,null,null,null,null,null,null,"Tiene como objetivo fomentar el emprendimiento y la industria sostenible e inclusiva. Fomenta la infraestructura y tecnologías modernas e impulsa el desarrollo económico con innovación y emprendimiento. La innovación y el emprendimiento son fundamentales para el desarrollo económico, ya que pueden contribuir a crear nuevos productos, procesos y servicios, y a aumentar la eficiencia y la productividad. Así mismo, la sostenibilidad y la inclusión son importantes para asegurar que el crecimiento económico beneficie a todos, especialmente a las personas más vulnerables y a las comunidades marginadas. \nTambién incluye la promoción de infraestructura y tecnologías modernas, lo que es importante para garantizar el acceso a servicios básicos como energía, agua y transporte, y para mejorar la competitividad y la eficiencia en la economía."]
[]
[]
[]
[]
[]
[null,null,"ODS"]
[null,null,"Construir infraestructuras resilientes, promover la industrialización sostenible y fomentar la innovación"]
[]
[]
[]
[]
[]
[]
[]
[null,null,"¿Está este ODS priorizado por su organización?",null,null,null,null,null,null,null,null,null,null,null,null,null,"Conteste acá",null,null,null,null,"Si la respuesta es \"Sí\", continúe"]
[null,null,null,null,null,null,null,null,null,null,null,null,null,null,null,null,null,null,null,null,null,"Si la respuesta es \"No\", pase al siguiente ODS"]
[null,null,"Sobre el anterior ODS:"]
[null,null,"Cualidad",null,null,null,"Preguntas",null,null,null,null,null,null,null,null,null,null,null,null,null,null,null,null,null,"Sí / No",null,null,null,null,null,null,null,null,"Promedio"]
[null,null,"Intencional",null,null,null,"¿Ha desarrollado una estrategia que refleje este compromiso, cubriendo las operaciones de extremo a extremo? ",null,null,null,null,null,null,null,null,null,null,null,null,null,null,null,null,null,null,null,null,null,null,null,null,null,{"$f":"IF(Y404=\"Sí\",1,\"\")","v":""},{"$f":"SUM(AG404:AG409)/3","v":0}]
[]
[null,null,null,null,null,null,"¿Está comprometido con aprender de sus acciones y cuenta con procesos para su mejora? ",null,null,null,null,null,null,null,null,null,null,null,null,null,null,null,null,null,null,null,null,null,null,null,null,null,{"$f":"IF(Y406=\"Sí\",1,\"\")","v":""}]
[]
[null,null,null,null,null,null,"¿Su estrategia está respaldada por los niveles más altos de administración, incluida la Junta Directiva?",null,null,null,null,null,null,null,null,null,null,null,null,null,null,null,null,null,null,null,null,null,null,null,null,null,{"$f":"IF(Y408=\"Sí\",1,\"\")","v":""}]
[]
[null,null,"Ambicioso",null,null,null,"¿Sus acciones logran resultados a largo plazo que superan en gran medida los resultados de las prácticas empresariales actuales?",null,null,null,null,null,null,null,null,null,null,null,null,null,null,null,null,null,null,null,null,null,null,null,null,null,{"$f":"IF(Y410=\"Sí\",1,\"\")","v":""},{"$f":"SUM(AG410:AG413)/2","v":0}]
[]
[null,null,null,null,null,null,"¿Están alineadas sus acciones con lo que se necesita para alcanzar este ODS?",null,null,null,null,null,null,null,null,null,null,null,null,null,null,null,null,null,null,null,null,null,null,null,null,null,{"$f":"IF(Y412=\"Sí\",1,\"\")","v":""}]
[]
[null,null,"Consistente",null,null,null,"¿El apoyo al ODS está incluido en todas las funciones de la organización?",null,null,null,null,null,null,null,null,null,null,null,null,null,null,null,null,null,null,null,null,null,null,null,null,null,{"$f":"IF(Y414=\"Sí\",1,\"\")","v":""},{"$f":"SUM(AG414:AG417)/2","v":0}]
[]
[null,null,null,null,null,null,"¿Los incentivos del personal y de los directivos están alineados con la acción de aportar al ODS?",null,null,null,null,null,null,null,null,null,null,null,null,null,null,null,null,null,null,null,null,null,null,null,null,null,{"$f":"IF(Y416=\"Sí\",1,\"\")","v":""}]
[]
[null,null,"Colaborativo",null,null,null,"¿Busca de forma proactiva oportunidades para asociarse con gobiernos, agencias de la ONU, proveedores, ONG, pares de la industria y otras partes interesadas para aumentar su avance hacia el Objetivo ?",null,null,null,null,null,null,null,null,null,null,null,null,null,null,null,null,null,null,null,null,null,null,null,null,null,{"$f":"IF(Y418=\"Sí\",1,\"\")","v":""},{"$f":"SUM(AG418:AG420)/1","v":0}]
[]
[]
[null,null,"Responsable",null,null,null,"¿Expresa públicamente su compromiso de avanzar en el ODS?",null,null,null,null,null,null,null,null,null,null,null,null,null,null,null,null,null,null,null,null,null,null,null,null,null,{"$f":"IF(Y421=\"Sí\",1,\"\")","v":""},{"$f":"SUM(AG421:AG426)/5","v":0}]
[null,null,null,null,null,null,"¿Identifica, monitorea e informa sobre los impactos, incluidos los impactos potencialmente adversos?",null,null,null,null,null,null,null,null,null,null,null,null,null,null,null,null,null,null,null,null,null,null,null,null,null,{"$f":"IF(Y422=\"Sí\",1,\"\")","v":""}]
[]
[null,null,null,null,null,null,"¿Mitiga los riesgos asociados con este Objetivo?",null,null,null,null,null,null,null,null,null,null,null,null,null,null,null,null,null,null,null,null,null,null,null,null,null,{"$f":"IF(Y424=\"Sí\",1,\"\")","v":""}]
[null,null,null,null,null,null,"¿Remedia los impactos negativos asociados con sus acciones?",null,null,null,null,null,null,null,null,null,null,null,null,null,null,null,null,null,null,null,null,null,null,null,null,null,{"$f":"IF(Y425=\"Sí\",1,\"\")","v":""}]
[null,null,null,null,null,null,"¿Involucra a los interesados de una manera significativa?",null,null,null,null,null,null,null,null,null,null,null,null,null,null,null,null,null,null,null,null,null,null,null,null,null,{"$f":"IF(Y426=\"Sí\",1,\"\")","v":""}]
[]
[]
[]
[null,null,null,null,null,null,null,null,null,null,null,null,null,null,null,"Tiene como objetivo el reducir las desigualdades económicas, sociales, de género, entre otras, abordando unas de las principales causas de la pobreza y la exclusión social: la desigualdad económica, social y territorial mediante la promoción de políticas y programas que fomenten la igualdad de oportunidades para todos y el desarrollo económico inclusivo y sostenible. \nBusca promover la inclusión social y la igualdad de oportunidades, lo que ayuda a mejorar el acceso a servicios básicos y oportunidades económicas para comunidades marginadas en zonas periféricas, o aquejadas por el conflicto o, de comunidades étnicas o raciales. \nAsí mismo, también busca promover la igualdad de género, lo que es especialmente importante para Colombia, donde las mujeres han enfrentado desafíos significativos en términos de igualdad de oportunidades y violencia de género."]
[]
[]
[]
[]
[]
[null,null,"ODS"]
[null,null,"Reducir la desigualdad en y entre los países"]
[]
[]
[]
[]
[]
[]
[]
[]
[null,null,"¿Está este ODS priorizado por su organización?",null,null,null,null,null,null,null,null,null,null,null,null,null,"Conteste acá",null,null,null,null,"Si la respuesta es \"Sí\", continúe"]
[null,null,null,null,null,null,null,null,null,null,null,null,null,null,null,null,null,null,null,null,null,"Si la respuesta es \"No\", pase al siguiente ODS"]
[null,null,"Sobre el anterior ODS:"]
[null,null,"Cualidad",null,null,null,"Preguntas",null,null,null,null,null,null,null,null,null,null,null,null,null,null,null,null,null,"Sí / No",null,null,null,null,null,null,null,null,"Promedio"]
[null,null,"Intencional",null,null,null,"¿Ha desarrollado una estrategia que refleje este compromiso, cubriendo las operaciones de extremo a extremo? ",null,null,null,null,null,null,null,null,null,null,null,null,null,null,null,null,null,null,null,null,null,null,null,null,null,{"$f":"IF(Y450=\"Sí\",1,\"\")","v":""},{"$f":"SUM(AG450:AG455)/3","v":0}]
[]
[null,null,null,null,null,null,"¿Está comprometido con aprender de sus acciones y cuenta con procesos para su mejora? ",null,null,null,null,null,null,null,null,null,null,null,null,null,null,null,null,null,null,null,null,null,null,null,null,null,{"$f":"IF(Y452=\"Sí\",1,\"\")","v":""}]
[]
[null,null,null,null,null,null,"¿Su estrategia está respaldada por los niveles más altos de administración, incluida la Junta Directiva?",null,null,null,null,null,null,null,null,null,null,null,null,null,null,null,null,null,null,null,null,null,null,null,null,null,{"$f":"IF(Y454=\"Sí\",1,\"\")","v":""}]
[]
[null,null,"Ambicioso",null,null,null,"¿Sus acciones logran resultados a largo plazo que superan en gran medida los resultados de las prácticas empresariales actuales?",null,null,null,null,null,null,null,null,null,null,null,null,null,null,null,null,null,null,null,null,null,null,null,null,null,{"$f":"IF(Y456=\"Sí\",1,\"\")","v":""},{"$f":"SUM(AG456:AG459)/2","v":0}]
[]
[null,null,null,null,null,null,"¿Están alineadas sus acciones con lo que se necesita para alcanzar este ODS?",null,null,null,null,null,null,null,null,null,null,null,null,null,null,null,null,null,null,null,null,null,null,null,null,null,{"$f":"IF(Y458=\"Sí\",1,\"\")","v":""}]
[]
[null,null,"Consistente",null,null,null,"¿El apoyo al ODS está incluido en todas las funciones de la organización?",null,null,null,null,null,null,null,null,null,null,null,null,null,null,null,null,null,null,null,null,null,null,null,null,null,{"$f":"IF(Y460=\"Sí\",1,\"\")","v":""},{"$f":"SUM(AG460:AG463)/2","v":0}]
[]
[null,null,null,null,null,null,"¿Los incentivos del personal y de los directivos están alineados con la acción de aportar al ODS?",null,null,null,null,null,null,null,null,null,null,null,null,null,null,null,null,null,null,null,null,null,null,null,null,null,{"$f":"IF(Y462=\"Sí\",1,\"\")","v":""}]
[]
[null,null,"Colaborativo",null,null,null,"¿Busca de forma proactiva oportunidades para asociarse con gobiernos, agencias de la ONU, proveedores, ONG, pares de la industria y otras partes interesadas para aumentar su avance hacia el Objetivo ?",null,null,null,null,null,null,null,null,null,null,null,null,null,null,null,null,null,null,null,null,null,null,null,null,null,{"$f":"IF(Y464=\"Sí\",1,\"\")","v":""},{"$f":"SUM(AG464:AG466)/1","v":0}]
[]
[]
[null,null,"Responsable",null,null,null,"¿Expresa públicamente su compromiso de avanzar en el ODS?",null,null,null,null,null,null,null,null,null,null,null,null,null,null,null,null,null,null,null,null,null,null,null,null,null,{"$f":"IF(Y467=\"Sí\",1,\"\")","v":""},{"$f":"SUM(AG467:AG472)/5","v":0}]
[null,null,null,null,null,null,"¿Identifica, monitorea e informa sobre los impactos, incluidos los impactos potencialmente adversos?",null,null,null,null,null,null,null,null,null,null,null,null,null,null,null,null,null,null,null,null,null,null,null,null,null,{"$f":"IF(Y468=\"Sí\",1,\"\")","v":""}]
[]
[null,null,null,null,null,null,"¿Mitiga los riesgos asociados con este Objetivo?",null,null,null,null,null,null,null,null,null,null,null,null,null,null,null,null,null,null,null,null,null,null,null,null,null,{"$f":"IF(Y470=\"Sí\",1,\"\")","v":""}]
[null,null,null,null,null,null,"¿Remedia los impactos negativos asociados con sus acciones?",null,null,null,null,null,null,null,null,null,null,null,null,null,null,null,null,null,null,null,null,null,null,null,null,null,{"$f":"IF(Y471=\"Sí\",1,\"\")","v":""}]
[null,null,null,null,null,null,"¿Involucra a los interesados de una manera significativa?",null,null,null,null,null,null,null,null,null,null,null,null,null,null,null,null,null,null,null,null,null,null,null,null,null,{"$f":"IF(Y472=\"Sí\",1,\"\")","v":""}]
[]
[]
[]
[null,null,null,null,null,null,null,null,null,null,null,null,null,null,null,"Busca hacer de las ciudades y los asentamientos humanos lugares inclusivos, seguros y resilientes para garantizar un desarrollo sostenible y una calidad de vida adecuada para todos, promoviendo la equidad, el bienestar y fomentando un medioambiente saludable y un desarrollo económico sostenible. \nEn concreto, busca mejorar la planificación y la gestión de ciudades y asentamientos humanos, promover la inclusión social y la igualdad de oportunidades, mejorar la seguridad y la resiliencia ante desastres, y reducir la contaminación y el uso de recursos naturales."]
[]
[]
[]
[]
[]
[null,null,"ODS"]
[null,null,"Lograr que las ciudades sean más inclusivas, seguras, resilientes y sostenibles"]
[]
[]
[null,null,"¿Está este ODS priorizado por su organización?",null,null,null,null,null,null,null,null,null,null,null,null,null,"Conteste acá",null,null,null,null,"Si la respuesta es \"Sí\", continúe"]
[null,null,null,null,null,null,null,null,null,null,null,null,null,null,null,null,null,null,null,null,null,"Si la respuesta es \"No\", pase al siguiente ODS"]
[null,null,"Sobre el anterior ODS:"]
[null,null,"Cualidad",null,null,null,"Preguntas",null,null,null,null,null,null,null,null,null,null,null,null,null,null,null,null,null,"Sí / No",null,null,null,null,null,null,null,null,"Promedio"]
[null,null,"Intencional",null,null,null,"¿Ha desarrollado una estrategia que refleje este compromiso, cubriendo las operaciones de extremo a extremo? ",null,null,null,null,null,null,null,null,null,null,null,null,null,null,null,null,null,null,null,null,null,null,null,null,null,{"$f":"IF(Y490=\"Sí\",1,\"\")","v":""},{"$f":"SUM(AG490:AG495)/3","v":0}]
[]
[null,null,null,null,null,null,"¿Está comprometido con aprender de sus acciones y cuenta con procesos para su mejora? ",null,null,null,null,null,null,null,null,null,null,null,null,null,null,null,null,null,null,null,null,null,null,null,null,null,{"$f":"IF(Y492=\"Sí\",1,\"\")","v":""}]
[]
[null,null,null,null,null,null,"¿Su estrategia está respaldada por los niveles más altos de administración, incluida la Junta Directiva?",null,null,null,null,null,null,null,null,null,null,null,null,null,null,null,null,null,null,null,null,null,null,null,null,null,{"$f":"IF(Y494=\"Sí\",1,\"\")","v":""}]
[]
[null,null,"Ambicioso",null,null,null,"¿Sus acciones logran resultados a largo plazo que superan en gran medida los resultados de las prácticas empresariales actuales?",null,null,null,null,null,null,null,null,null,null,null,null,null,null,null,null,null,null,null,null,null,null,null,null,null,{"$f":"IF(Y496=\"Sí\",1,\"\")","v":""},{"$f":"SUM(AG496:AG499)/2","v":0}]
[]
[null,null,null,null,null,null,"¿Están alineadas sus acciones con lo que se necesita para alcanzar este ODS?",null,null,null,null,null,null,null,null,null,null,null,null,null,null,null,null,null,null,null,null,null,null,null,null,null,{"$f":"IF(Y498=\"Sí\",1,\"\")","v":""}]
[]
[null,null,"Consistente",null,null,null,"¿El apoyo al ODS está incluido en todas las funciones de la organización?",null,null,null,null,null,null,null,null,null,null,null,null,null,null,null,null,null,null,null,null,null,null,null,null,null,{"$f":"IF(Y500=\"Sí\",1,\"\")","v":""},{"$f":"SUM(AG500:AG503)/2","v":0}]
[]
[null,null,null,null,null,null,"¿Los incentivos del personal y de los directivos están alineados con la acción de aportar al ODS?",null,null,null,null,null,null,null,null,null,null,null,null,null,null,null,null,null,null,null,null,null,null,null,null,null,{"$f":"IF(Y502=\"Sí\",1,\"\")","v":""}]
[]
[null,null,"Colaborativo",null,null,null,"¿Busca de forma proactiva oportunidades para asociarse con gobiernos, agencias de la ONU, proveedores, ONG, pares de la industria y otras partes interesadas para aumentar su avance hacia el Objetivo ?",null,null,null,null,null,null,null,null,null,null,null,null,null,null,null,null,null,null,null,null,null,null,null,null,null,{"$f":"IF(Y504=\"Sí\",1,\"\")","v":""},{"$f":"SUM(AG504:AG506)/1","v":0}]
[]
[]
[null,null,"Responsable",null,null,null,"¿Expresa públicamente su compromiso de avanzar en el ODS?",null,null,null,null,null,null,null,null,null,null,null,null,null,null,null,null,null,null,null,null,null,null,null,null,null,{"$f":"IF(Y507=\"Sí\",1,\"\")","v":""},{"$f":"SUM(AG507:AG512)/5","v":0}]
[null,null,null,null,null,null,"¿Identifica, monitorea e informa sobre los impactos, incluidos los impactos potencialmente adversos?",null,null,null,null,null,null,null,null,null,null,null,null,null,null,null,null,null,null,null,null,null,null,null,null,null,{"$f":"IF(Y508=\"Sí\",1,\"\")","v":""}]
[]
[null,null,null,null,null,null,"¿Mitiga los riesgos asociados con este Objetivo?",null,null,null,null,null,null,null,null,null,null,null,null,null,null,null,null,null,null,null,null,null,null,null,null,null,{"$f":"IF(Y510=\"Sí\",1,\"\")","v":""}]
[null,null,null,null,null,null,"¿Remedia los impactos negativos asociados con sus acciones?",null,null,null,null,null,null,null,null,null,null,null,null,null,null,null,null,null,null,null,null,null,null,null,null,null,{"$f":"IF(Y511=\"Sí\",1,\"\")","v":""}]
[null,null,null,null,null,null,"¿Involucra a los interesados de una manera significativa?",null,null,null,null,null,null,null,null,null,null,null,null,null,null,null,null,null,null,null,null,null,null,null,null,null,{"$f":"IF(Y512=\"Sí\",1,\"\")","v":""}]
[]
[]
[]
[null,null,null,null,null,null,null,null,null,null,null,null,null,null,null,"Busca reducir el impacto ambiental negativo causado por la producción y el consumo de los recursos naturales, contribuyendo a la preservación de la biodiversidad, la protección del medioambiente, la reducción del cambio climático y el uso excesivo de los recursos naturales mediante la promoción de prácticas sostenibles en el consumo y la producción.\nEste ODS resulta fundamental para el país dada la importancia de la extracción de recursos naturales (petróleo, carbón, oro, esmeraldas, etc.), lo que genera grandes impactos ambientales y sociales. La minería, junto con diferentes formas de agricultura y colonización, también han causado problemáticas de deforestación, contaminación y sobreexplotación de recursos naturales en la gran variedad de ecosistemas y biodiversidad del país."]
[]
[]
[]
[]
[]
[null,null,"ODS"]
[null,null,"Garantizar modalidades de consumo y producción sostenibles"]
[]
[]
[]
[]
[]
[]
[null,null,"¿Está este ODS priorizado por su organización?",null,null,null,null,null,null,null,null,null,null,null,null,null,"Conteste acá",null,null,null,null,"Si la respuesta es \"Sí\", continúe"]
[null,null,null,null,null,null,null,null,null,null,null,null,null,null,null,null,null,null,null,null,null,"Si la respuesta es \"No\", pase al siguiente ODS"]
[null,null,"Sobre el anterior ODS:"]
[null,null,"Cualidad",null,null,null,"Preguntas",null,null,null,null,null,null,null,null,null,null,null,null,null,null,null,null,null,"Sí / No",null,null,null,null,null,null,null,null,"Promedio"]
[null,null,"Intencional",null,null,null,"¿Ha desarrollado una estrategia que refleje este compromiso, cubriendo las operaciones de extremo a extremo? ",null,null,null,null,null,null,null,null,null,null,null,null,null,null,null,null,null,null,null,null,null,null,null,null,null,{"$f":"IF(Y534=\"Sí\",1,\"\")","v":""},{"$f":"SUM(AG534:AG539)/3","v":0}]
[]
[null,null,null,null,null,null,"¿Está comprometido con aprender de sus acciones y cuenta con procesos para su mejora? ",null,null,null,null,null,null,null,null,null,null,null,null,null,null,null,null,null,null,null,null,null,null,null,null,null,{"$f":"IF(Y536=\"Sí\",1,\"\")","v":""}]
[]
[null,null,null,null,null,null,"¿Su estrategia está respaldada por los niveles más altos de administración, incluida la Junta Directiva?",null,null,null,null,null,null,null,null,null,null,null,null,null,null,null,null,null,null,null,null,null,null,null,null,null,{"$f":"IF(Y538=\"Sí\",1,\"\")","v":""}]
[]
[null,null,"Ambicioso",null,null,null,"¿Sus acciones logran resultados a largo plazo que superan en gran medida los resultados de las prácticas empresariales actuales?",null,null,null,null,null,null,null,null,null,null,null,null,null,null,null,null,null,null,null,null,null,null,null,null,null,{"$f":"IF(Y540=\"Sí\",1,\"\")","v":""},{"$f":"SUM(AG540:AG543)/2","v":0}]
[]
[null,null,null,null,null,null,"¿Están alineadas sus acciones con lo que se necesita para alcanzar este ODS?",null,null,null,null,null,null,null,null,null,null,null,null,null,null,null,null,null,null,null,null,null,null,null,null,null,{"$f":"IF(Y542=\"Sí\",1,\"\")","v":""}]
[]
[null,null,"Consistente",null,null,null,"¿El apoyo al ODS está incluido en todas las funciones de la organización?",null,null,null,null,null,null,null,null,null,null,null,null,null,null,null,null,null,null,null,null,null,null,null,null,null,{"$f":"IF(Y544=\"Sí\",1,\"\")","v":""},{"$f":"SUM(AG544:AG547)/2","v":0}]
[]
[null,null,null,null,null,null,"¿Los incentivos del personal y de los directivos están alineados con la acción de aportar al ODS?",null,null,null,null,null,null,null,null,null,null,null,null,null,null,null,null,null,null,null,null,null,null,null,null,null,{"$f":"IF(Y546=\"Sí\",1,\"\")","v":""}]
[]
[null,null,"Colaborativo",null,null,null,"¿Busca de forma proactiva oportunidades para asociarse con gobiernos, agencias de la ONU, proveedores, ONG, pares de la industria y otras partes interesadas para aumentar su avance hacia el Objetivo ?",null,null,null,null,null,null,null,null,null,null,null,null,null,null,null,null,null,null,null,null,null,null,null,null,null,{"$f":"IF(Y548=\"Sí\",1,\"\")","v":""},{"$f":"SUM(AG548:AG550)/1","v":0}]
[]
[]
[null,null,"Responsable",null,null,null,"¿Expresa públicamente su compromiso de avanzar en el ODS?",null,null,null,null,null,null,null,null,null,null,null,null,null,null,null,null,null,null,null,null,null,null,null,null,null,{"$f":"IF(Y551=\"Sí\",1,\"\")","v":""},{"$f":"SUM(AG551:AG556)/5","v":0}]
[null,null,null,null,null,null,"¿Identifica, monitorea e informa sobre los impactos, incluidos los impactos potencialmente adversos?",null,null,null,null,null,null,null,null,null,null,null,null,null,null,null,null,null,null,null,null,null,null,null,null,null,{"$f":"IF(Y552=\"Sí\",1,\"\")","v":""}]
[]
[null,null,null,null,null,null,"¿Mitiga los riesgos asociados con este Objetivo?",null,null,null,null,null,null,null,null,null,null,null,null,null,null,null,null,null,null,null,null,null,null,null,null,null,{"$f":"IF(Y554=\"Sí\",1,\"\")","v":""}]
[null,null,null,null,null,null,"¿Remedia los impactos negativos asociados con sus acciones?",null,null,null,null,null,null,null,null,null,null,null,null,null,null,null,null,null,null,null,null,null,null,null,null,null,{"$f":"IF(Y555=\"Sí\",1,\"\")","v":""}]
[null,null,null,null,null,null,"¿Involucra a los interesados de una manera significativa?",null,null,null,null,null,null,null,null,null,null,null,null,null,null,null,null,null,null,null,null,null,null,null,null,null,{"$f":"IF(Y556=\"Sí\",1,\"\")","v":""}]
[]
[]
[]
[null,null,null,null,null,null,null,null,null,null,null,null,null,null,null,"Busca reducir las emisiones de gases de efecto invernadero y lograr adaptarnos a los efectos existentes del cambio climático mediante la promoción de políticas y prácticas sostenibles que permitan la toma de medidas urgentes para combatir el cambio climático y sus impactos. El cambio climático es uno de los mayores desafíos a los que se enfrenta la humanidad, pues trae consigo consecuencias negativas para la salud, el medioambiente y la economía, incluyendo problemáticas relacionadas con el agua, la alimentación, el bienestar y el medioambiente. Es causado mayoritariamente por las emisiones de gases de efecto invernadero, principalmente el dióxido de carbono (CO2), emitido por la quema de combustibles fósiles y la deforestación. \nEl cambio climático aumenta el riesgo de sequías, inundaciones y otros desastres naturales, los cuales además tienen un gran impacto en la agricultura y la producción de alimentos, pues afecta la disponibilidad de agua, el desarrollo de las cosechas y el bienestar de los animales. También afecta de manera importante la biodiversidad y los ecosistemas al cambiar la distribución de especies y los patrones de lluvia. "]
[]
[]
[]
[]
[]
[null,null,"ODS"]
[null,null,"Adoptar medidas urgentes para combatir el cambio climático y sus efectos"]
[]
[]
[]
[]
[]
[]
[]
[]
[]
[]
[]
[]
[null,null,"¿Está este ODS priorizado por su organización?",null,null,null,null,null,null,null,null,null,null,null,null,null,"Conteste acá",null,null,null,null,"Si la respuesta es \"Sí\", continúe"]
[null,null,null,null,null,null,null,null,null,null,null,null,null,null,null,null,null,null,null,null,null,"Si la respuesta es \"No\", pase al siguiente ODS"]
[null,null,"Sobre el anterior ODS:"]
[null,null,"Cualidad",null,null,null,"Preguntas",null,null,null,null,null,null,null,null,null,null,null,null,null,null,null,null,null,"Sí / No",null,null,null,null,null,null,null,null,"Promedio"]
[null,null,"Intencional",null,null,null,"¿Ha desarrollado una estrategia que refleje este compromiso, cubriendo las operaciones de extremo a extremo? ",null,null,null,null,null,null,null,null,null,null,null,null,null,null,null,null,null,null,null,null,null,null,null,null,null,{"$f":"IF(Y584=\"Sí\",1,\"\")","v":""},{"$f":"SUM(AG584:AG589)/3","v":0}]
[]
[null,null,null,null,null,null,"¿Está comprometido con aprender de sus acciones y cuenta con procesos para su mejora? ",null,null,null,null,null,null,null,null,null,null,null,null,null,null,null,null,null,null,null,null,null,null,null,null,null,{"$f":"IF(Y586=\"Sí\",1,\"\")","v":""}]
[]
[null,null,null,null,null,null,"¿Su estrategia está respaldada por los niveles más altos de administración, incluida la Junta Directiva?",null,null,null,null,null,null,null,null,null,null,null,null,null,null,null,null,null,null,null,null,null,null,null,null,null,{"$f":"IF(Y588=\"Sí\",1,\"\")","v":""}]
[]
[null,null,"Ambicioso",null,null,null,"¿Sus acciones logran resultados a largo plazo que superan en gran medida los resultados de las prácticas empresariales actuales?",null,null,null,null,null,null,null,null,null,null,null,null,null,null,null,null,null,null,null,null,null,null,null,null,null,{"$f":"IF(Y590=\"Sí\",1,\"\")","v":""},{"$f":"SUM(AG590:AG593)/2","v":0}]
[]
[null,null,null,null,null,null,"¿Están alineadas sus acciones con lo que se necesita para alcanzar este ODS?",null,null,null,null,null,null,null,null,null,null,null,null,null,null,null,null,null,null,null,null,null,null,null,null,null,{"$f":"IF(Y592=\"Sí\",1,\"\")","v":""}]
[]
[null,null,"Consistente",null,null,null,"¿El apoyo al ODS está incluido en todas las funciones de la organización?",null,null,null,null,null,null,null,null,null,null,null,null,null,null,null,null,null,null,null,null,null,null,null,null,null,{"$f":"IF(Y594=\"Sí\",1,\"\")","v":""},{"$f":"SUM(AG594:AG597)/2","v":0}]
[]
[null,null,null,null,null,null,"¿Los incentivos del personal y de los directivos están alineados con la acción de aportar al ODS?",null,null,null,null,null,null,null,null,null,null,null,null,null,null,null,null,null,null,null,null,null,null,null,null,null,{"$f":"IF(Y596=\"Sí\",1,\"\")","v":""}]
[]
[null,null,"Colaborativo",null,null,null,"¿Busca de forma proactiva oportunidades para asociarse con gobiernos, agencias de la ONU, proveedores, ONG, pares de la industria y otras partes interesadas para aumentar su avance hacia el Objetivo ?",null,null,null,null,null,null,null,null,null,null,null,null,null,null,null,null,null,null,null,null,null,null,null,null,null,{"$f":"IF(Y598=\"Sí\",1,\"\")","v":""},{"$f":"SUM(AG598:AG600)/1","v":0}]
[]
[]
[null,null,"Responsable",null,null,null,"¿Expresa públicamente su compromiso de avanzar en el ODS?",null,null,null,null,null,null,null,null,null,null,null,null,null,null,null,null,null,null,null,null,null,null,null,null,null,{"$f":"IF(Y601=\"Sí\",1,\"\")","v":""},{"$f":"SUM(AG601:AG606)/5","v":0}]
[null,null,null,null,null,null,"¿Identifica, monitorea e informa sobre los impactos, incluidos los impactos potencialmente adversos?",null,null,null,null,null,null,null,null,null,null,null,null,null,null,null,null,null,null,null,null,null,null,null,null,null,{"$f":"IF(Y602=\"Sí\",1,\"\")","v":""}]
[]
[null,null,null,null,null,null,"¿Mitiga los riesgos asociados con este Objetivo?",null,null,null,null,null,null,null,null,null,null,null,null,null,null,null,null,null,null,null,null,null,null,null,null,null,{"$f":"IF(Y604=\"Sí\",1,\"\")","v":""}]
[null,null,null,null,null,null,"¿Remedia los impactos negativos asociados con sus acciones?",null,null,null,null,null,null,null,null,null,null,null,null,null,null,null,null,null,null,null,null,null,null,null,null,null,{"$f":"IF(Y605=\"Sí\",1,\"\")","v":""}]
[null,null,null,null,null,null,"¿Involucra a los interesados de una manera significativa?",null,null,null,null,null,null,null,null,null,null,null,null,null,null,null,null,null,null,null,null,null,null,null,null,null,{"$f":"IF(Y606=\"Sí\",1,\"\")","v":""}]
[]
[]
[]
[null,null,null,null,null,null,null,null,null,null,null,null,null,null,null,"Busca conservar y utilizar de manera sostenible los océanos, los mares y los recursos marinos, previniendo los efectos del cambio climático en estos y reduciendo significativamente la contaminación marina, protegiendo los ecosistemas costeros y marinos y evitando la pérdida de biodiversidad marina. Además, busca gestionar de manera sostenible los océanos y sus recursos, promoviendo la pesca sostenible y la acuicultura responsable.\nLos océanos y los ecosistemas marinos sufren graves problemas de contaminación, pesca excesiva, efectos del cambio climático y la misma destrucción de los hábitats marinos. Resulta crucial para la especie humana su conservación, puesto que los océanos y los ecosistemas marinos son una fuente importante de alimentos, medicinas y recursos naturales fundamentales. Así mismo, son fundamentales para la regulación del clima y la biodiversidad. Además, son vitales en la producción de oxígeno y la absorción de carbono."]
[]
[]
[]
[]
[]
[null,null,"ODS"]
[null,null,"Conservar y utilizar sosteniblemente los océanos, los mares y los recursos marinos"]
[]
[]
[]
[]
[]
[]
[]
[]
[]
[null,null,"¿Está este ODS priorizado por su organización?",null,null,null,null,null,null,null,null,null,null,null,null,null,"Conteste acá",null,null,null,null,"Si la respuesta es \"Sí\", continúe"]
[null,null,null,null,null,null,null,null,null,null,null,null,null,null,null,null,null,null,null,null,null,"Si la respuesta es \"No\", pase al siguiente ODS"]
[null,null,"Sobre el anterior ODS:"]
[null,null,"Cualidad",null,null,null,"Preguntas",null,null,null,null,null,null,null,null,null,null,null,null,null,null,null,null,null,"Sí / No",null,null,null,null,null,null,null,null,"Promedio"]
[null,null,"Intencional",null,null,null,"¿Ha desarrollado una estrategia que refleje este compromiso, cubriendo las operaciones de extremo a extremo? ",null,null,null,null,null,null,null,null,null,null,null,null,null,null,null,null,null,null,null,null,null,null,null,null,null,{"$f":"IF(Y631=\"Sí\",1,\"\")","v":""},{"$f":"SUM(AG631:AG636)/3","v":0}]
[]
[null,null,null,null,null,null,"¿Está comprometido con aprender de sus acciones y cuenta con procesos para su mejora? ",null,null,null,null,null,null,null,null,null,null,null,null,null,null,null,null,null,null,null,null,null,null,null,null,null,{"$f":"IF(Y633=\"Sí\",1,\"\")","v":""}]
[]
[null,null,null,null,null,null,"¿Su estrategia está respaldada por los niveles más altos de administración, incluida la Junta Directiva?",null,null,null,null,null,null,null,null,null,null,null,null,null,null,null,null,null,null,null,null,null,null,null,null,null,{"$f":"IF(Y635=\"Sí\",1,\"\")","v":""}]
[]
[null,null,"Ambicioso",null,null,null,"¿Sus acciones logran resultados a largo plazo que superan en gran medida los resultados de las prácticas empresariales actuales?",null,null,null,null,null,null,null,null,null,null,null,null,null,null,null,null,null,null,null,null,null,null,null,null,null,{"$f":"IF(Y637=\"Sí\",1,\"\")","v":""},{"$f":"SUM(AG637:AG640)/2","v":0}]
[]
[null,null,null,null,null,null,"¿Están alineadas sus acciones con lo que se necesita para alcanzar este ODS?",null,null,null,null,null,null,null,null,null,null,null,null,null,null,null,null,null,null,null,null,null,null,null,null,null,{"$f":"IF(Y639=\"Sí\",1,\"\")","v":""}]
[]
[null,null,"Consistente",null,null,null,"¿El apoyo al ODS está incluido en todas las funciones de la organización?",null,null,null,null,null,null,null,null,null,null,null,null,null,null,null,null,null,null,null,null,null,null,null,null,null,{"$f":"IF(Y641=\"Sí\",1,\"\")","v":""},{"$f":"SUM(AG641:AG644)/2","v":0}]
[]
[null,null,null,null,null,null,"¿Los incentivos del personal y de los directivos están alineados con la acción de aportar al ODS?",null,null,null,null,null,null,null,null,null,null,null,null,null,null,null,null,null,null,null,null,null,null,null,null,null,{"$f":"IF(Y643=\"Sí\",1,\"\")","v":""}]
[]
[null,null,"Colaborativo",null,null,null,"¿Busca de forma proactiva oportunidades para asociarse con gobiernos, agencias de la ONU, proveedores, ONG, pares de la industria y otras partes interesadas para aumentar su avance hacia el Objetivo ?",null,null,null,null,null,null,null,null,null,null,null,null,null,null,null,null,null,null,null,null,null,null,null,null,null,{"$f":"IF(Y645=\"Sí\",1,\"\")","v":""},{"$f":"SUM(AG645:AG647)/1","v":0}]
[]
[]
[null,null,"Responsable",null,null,null,"¿Expresa públicamente su compromiso de avanzar en el ODS?",null,null,null,null,null,null,null,null,null,null,null,null,null,null,null,null,null,null,null,null,null,null,null,null,null,{"$f":"IF(Y648=\"Sí\",1,\"\")","v":""},{"$f":"SUM(AG648:AG653)/5","v":0}]
[null,null,null,null,null,null,"¿Identifica, monitorea e informa sobre los impactos, incluidos los impactos potencialmente adversos?",null,null,null,null,null,null,null,null,null,null,null,null,null,null,null,null,null,null,null,null,null,null,null,null,null,{"$f":"IF(Y649=\"Sí\",1,\"\")","v":""}]
[]
[null,null,null,null,null,null,"¿Mitiga los riesgos asociados con este Objetivo?",null,null,null,null,null,null,null,null,null,null,null,null,null,null,null,null,null,null,null,null,null,null,null,null,null,{"$f":"IF(Y651=\"Sí\",1,\"\")","v":""}]
[null,null,null,null,null,null,"¿Remedia los impactos negativos asociados con sus acciones?",null,null,null,null,null,null,null,null,null,null,null,null,null,null,null,null,null,null,null,null,null,null,null,null,null,{"$f":"IF(Y652=\"Sí\",1,\"\")","v":""}]
[null,null,null,null,null,null,"¿Involucra a los interesados de una manera significativa?",null,null,null,null,null,null,null,null,null,null,null,null,null,null,null,null,null,null,null,null,null,null,null,null,null,{"$f":"IF(Y653=\"Sí\",1,\"\")","v":""}]
[]
[]
[]
[null,null,null,null,null,null,null,null,null,null,null,null,null,null,null,"Busca conservar y utilizar de manera sostenible los ecosistemas terrestres mediante la protección, restablecimiento y promoción de su uso sostenible. También busca la gestión sostenible de los bosques, la lucha contra la desertificación, detener e incluso revertir la degradación de las tierras y detener su pérdida de biodiversidad. Esto se considera fundamental para la especie humana, ya que los diversos ecosistemas proporcionan diferentes servicios ecosistémicos, tales como la regulación del clima, la purificación del agua, la polinización de cultivos y la protección de los suelos, por lo que resultan vitales para luchar contra el cambio climático. Además, los ecosistemas terrestres son una fuente importante de alimentos, medicinas y recursos naturales. "]
[]
[]
[]
[]
[]
[null,null,"ODS"]
[null,null,"Gestionar sosteniblemente los bosques, luchar contra la desertificación, detener e invertir la degradación de las tierras, detener la pérdida de biodiversidad"]
[]
[]
[]
[]
[]
[null,null,"¿Está este ODS priorizado por su organización?",null,null,null,null,null,null,null,null,null,null,null,null,null,"Conteste acá",null,null,null,null,"Si la respuesta es \"Sí\", continúe"]
[null,null,null,null,null,null,null,null,null,null,null,null,null,null,null,null,null,null,null,null,null,"Si la respuesta es \"No\", pase al siguiente ODS"]
[null,null,"Sobre el anterior ODS:"]
[null,null,"Cualidad",null,null,null,"Preguntas",null,null,null,null,null,null,null,null,null,null,null,null,null,null,null,null,null,"Sí / No",null,null,null,null,null,null,null,null,"Promedio"]
[null,null,"Intencional",null,null,null,"¿Ha desarrollado una estrategia que refleje este compromiso, cubriendo las operaciones de extremo a extremo? ",null,null,null,null,null,null,null,null,null,null,null,null,null,null,null,null,null,null,null,null,null,null,null,null,null,{"$f":"IF(Y674=\"Sí\",1,\"\")","v":""},{"$f":"SUM(AG674:AG679)/3","v":0}]
[]
[null,null,null,null,null,null,"¿Está comprometido con aprender de sus acciones y cuenta con procesos para su mejora? ",null,null,null,null,null,null,null,null,null,null,null,null,null,null,null,null,null,null,null,null,null,null,null,null,null,{"$f":"IF(Y676=\"Sí\",1,\"\")","v":""}]
[]
[null,null,null,null,null,null,"¿Su estrategia está respaldada por los niveles más altos de administración, incluida la Junta Directiva?",null,null,null,null,null,null,null,null,null,null,null,null,null,null,null,null,null,null,null,null,null,null,null,null,null,{"$f":"IF(Y678=\"Sí\",1,\"\")","v":""}]
[]
[null,null,"Ambicioso",null,null,null,"¿Sus acciones logran resultados a largo plazo que superan en gran medida los resultados de las prácticas empresariales actuales?",null,null,null,null,null,null,null,null,null,null,null,null,null,null,null,null,null,null,null,null,null,null,null,null,null,{"$f":"IF(Y680=\"Sí\",1,\"\")","v":""},{"$f":"SUM(AG680:AG683)/2","v":0}]
[]
[null,null,null,null,null,null,"¿Están alineadas sus acciones con lo que se necesita para alcanzar este ODS?",null,null,null,null,null,null,null,null,null,null,null,null,null,null,null,null,null,null,null,null,null,null,null,null,null,{"$f":"IF(Y682=\"Sí\",1,\"\")","v":""}]
[]
[null,null,"Consistente",null,null,null,"¿El apoyo al ODS está incluido en todas las funciones de la organización?",null,null,null,null,null,null,null,null,null,null,null,null,null,null,null,null,null,null,null,null,null,null,null,null,null,{"$f":"IF(Y684=\"Sí\",1,\"\")","v":""},{"$f":"SUM(AG684:AG687)/2","v":0}]
[]
[null,null,null,null,null,null,"¿Los incentivos del personal y de los directivos están alineados con la acción de aportar al ODS?",null,null,null,null,null,null,null,null,null,null,null,null,null,null,null,null,null,null,null,null,null,null,null,null,null,{"$f":"IF(Y686=\"Sí\",1,\"\")","v":""}]
[]
[null,null,"Colaborativo",null,null,null,"¿Busca de forma proactiva oportunidades para asociarse con gobiernos, agencias de la ONU, proveedores, ONG, pares de la industria y otras partes interesadas para aumentar su avance hacia el Objetivo ?",null,null,null,null,null,null,null,null,null,null,null,null,null,null,null,null,null,null,null,null,null,null,null,null,null,{"$f":"IF(Y688=\"Sí\",1,\"\")","v":""},{"$f":"SUM(AG688:AG690)/1","v":0}]
[]
[]
[null,null,"Responsable",null,null,null,"¿Expresa públicamente su compromiso de avanzar en el ODS?",null,null,null,null,null,null,null,null,null,null,null,null,null,null,null,null,null,null,null,null,null,null,null,null,null,{"$f":"IF(Y691=\"Sí\",1,\"\")","v":""},{"$f":"SUM(AG691:AG696)/5","v":0}]
[null,null,null,null,null,null,"¿Identifica, monitorea e informa sobre los impactos, incluidos los impactos potencialmente adversos?",null,null,null,null,null,null,null,null,null,null,null,null,null,null,null,null,null,null,null,null,null,null,null,null,null,{"$f":"IF(Y692=\"Sí\",1,\"\")","v":""}]
[]
[null,null,null,null,null,null,"¿Mitiga los riesgos asociados con este Objetivo?",null,null,null,null,null,null,null,null,null,null,null,null,null,null,null,null,null,null,null,null,null,null,null,null,null,{"$f":"IF(Y694=\"Sí\",1,\"\")","v":""}]
[null,null,null,null,null,null,"¿Remedia los impactos negativos asociados con sus acciones?",null,null,null,null,null,null,null,null,null,null,null,null,null,null,null,null,null,null,null,null,null,null,null,null,null,{"$f":"IF(Y695=\"Sí\",1,\"\")","v":""}]
[null,null,null,null,null,null,"¿Involucra a los interesados de una manera significativa?",null,null,null,null,null,null,null,null,null,null,null,null,null,null,null,null,null,null,null,null,null,null,null,null,null,{"$f":"IF(Y696=\"Sí\",1,\"\")","v":""}]
[]
[]
[]
[null,null,null,null,null,null,null,null,null,null,null,null,null,null,null,"Busca una sociedad pacífica y sin violencia donde prime la dignidad humana, pues sin esta condición es difícil lograr los demás ODS y garantizar el acceso a servicios básicos y derechos humanos para todos. \nEn una sociedad sin paz, la violencia, el crimen y la inseguridad son problemas graves que la afectan y que tienen un impacto negativo en el desarrollo económico y social. En cambio, un sistema de justicia fuerte y eficaz es esencial para garantizar que las personas tengan acceso a la justicia y que se hagan cumplir las leyes y las normas. \nPor su parte, las instituciones públicas sólidas son esenciales para garantizar que se tomen decisiones informadas y que se implementen políticas y programas eficaces para lograr el desarrollo sostenible. "]
[]
[]
[]
[]
[]
[null,null,"ODS"]
[null,null,"Promover sociedades justas, pacíficas e inclusivas"]
[]
[]
[]
[]
[]
[]
[]
[null,null,"¿Está este ODS priorizado por su organización?",null,null,null,null,null,null,null,null,null,null,null,null,null,"Conteste acá",null,null,null,null,"Si la respuesta es \"Sí\", continúe"]
[null,null,null,null,null,null,null,null,null,null,null,null,null,null,null,null,null,null,null,null,null,"Si la respuesta es \"No\", pase al siguiente ODS"]
[null,null,"Sobre el anterior ODS:"]
[null,null,"Cualidad",null,null,null,"Preguntas",null,null,null,null,null,null,null,null,null,null,null,null,null,null,null,null,null,"Sí / No",null,null,null,null,null,null,null,null,"Promedio"]
[null,null,"Intencional",null,null,null,"¿Ha desarrollado una estrategia que refleje este compromiso, cubriendo las operaciones de extremo a extremo? ",null,null,null,null,null,null,null,null,null,null,null,null,null,null,null,null,null,null,null,null,null,null,null,null,null,{"$f":"IF(Y719=\"Sí\",1,\"\")","v":""},{"$f":"SUM(AG719:AG724)/3","v":0}]
[]
[null,null,null,null,null,null,"¿Está comprometido con aprender de sus acciones y cuenta con procesos para su mejora? ",null,null,null,null,null,null,null,null,null,null,null,null,null,null,null,null,null,null,null,null,null,null,null,null,null,{"$f":"IF(Y721=\"Sí\",1,\"\")","v":""}]
[]
[null,null,null,null,null,null,"¿Su estrategia está respaldada por los niveles más altos de administración, incluida la Junta Directiva?",null,null,null,null,null,null,null,null,null,null,null,null,null,null,null,null,null,null,null,null,null,null,null,null,null,{"$f":"IF(Y723=\"Sí\",1,\"\")","v":""}]
[]
[null,null,"Ambicioso",null,null,null,"¿Sus acciones logran resultados a largo plazo que superan en gran medida los resultados de las prácticas empresariales actuales?",null,null,null,null,null,null,null,null,null,null,null,null,null,null,null,null,null,null,null,null,null,null,null,null,null,{"$f":"IF(Y725=\"Sí\",1,\"\")","v":""},{"$f":"SUM(AG725:AG728)/2","v":0}]
[]
[null,null,null,null,null,null,"¿Están alineadas sus acciones con lo que se necesita para alcanzar este ODS?",null,null,null,null,null,null,null,null,null,null,null,null,null,null,null,null,null,null,null,null,null,null,null,null,null,{"$f":"IF(Y727=\"Sí\",1,\"\")","v":""}]
[]
[null,null,"Consistente",null,null,null,"¿El apoyo al ODS está incluido en todas las funciones de la organización?",null,null,null,null,null,null,null,null,null,null,null,null,null,null,null,null,null,null,null,null,null,null,null,null,null,{"$f":"IF(Y729=\"Sí\",1,\"\")","v":""},{"$f":"SUM(AG729:AG732)/2","v":0}]
[]
[null,null,null,null,null,null,"¿Los incentivos del personal y de los directivos están alineados con la acción de aportar al ODS?",null,null,null,null,null,null,null,null,null,null,null,null,null,null,null,null,null,null,null,null,null,null,null,null,null,{"$f":"IF(Y731=\"Sí\",1,\"\")","v":""}]
[]
[null,null,"Colaborativo",null,null,null,"¿Busca de forma proactiva oportunidades para asociarse con gobiernos, agencias de la ONU, proveedores, ONG, pares de la industria y otras partes interesadas para aumentar su avance hacia el Objetivo ?",null,null,null,null,null,null,null,null,null,null,null,null,null,null,null,null,null,null,null,null,null,null,null,null,null,{"$f":"IF(Y733=\"Sí\",1,\"\")","v":""},{"$f":"SUM(AG733:AG735)/1","v":0}]
[]
[]
[null,null,"Responsable",null,null,null,"¿Expresa públicamente su compromiso de avanzar en el ODS?",null,null,null,null,null,null,null,null,null,null,null,null,null,null,null,null,null,null,null,null,null,null,null,null,null,{"$f":"IF(Y736=\"Sí\",1,\"\")","v":""},{"$f":"SUM(AG736:AG741)/5","v":0}]
[null,null,null,null,null,null,"¿Identifica, monitorea e informa sobre los impactos, incluidos los impactos potencialmente adversos?",null,null,null,null,null,null,null,null,null,null,null,null,null,null,null,null,null,null,null,null,null,null,null,null,null,{"$f":"IF(Y737=\"Sí\",1,\"\")","v":""}]
[]
[null,null,null,null,null,null,"¿Mitiga los riesgos asociados con este Objetivo?",null,null,null,null,null,null,null,null,null,null,null,null,null,null,null,null,null,null,null,null,null,null,null,null,null,{"$f":"IF(Y739=\"Sí\",1,\"\")","v":""}]
[null,null,null,null,null,null,"¿Remedia los impactos negativos asociados con sus acciones?",null,null,null,null,null,null,null,null,null,null,null,null,null,null,null,null,null,null,null,null,null,null,null,null,null,{"$f":"IF(Y740=\"Sí\",1,\"\")","v":""}]
[null,null,null,null,null,null,"¿Involucra a los interesados de una manera significativa?",null,null,null,null,null,null,null,null,null,null,null,null,null,null,null,null,null,null,null,null,null,null,null,null,null,{"$f":"IF(Y741=\"Sí\",1,\"\")","v":""}]
[]
[]
[]
[null,null,null,null,null,null,null,null,null,null,null,null,null,null,null,"Resalta la importancia de colaborar y formar alianzas entre todos los actores de la sociedad, tanto en el plano nacional como internacional, para alcanzar los demás ODS y promover el desarrollo sostenible en general. De esta forma, este indica que para cumplir con los ODS y para abordar los desafíos que aquejan hoy al mundo y a las sociedades, se requiera de la cooperación y la colaboración entre gobiernos, las empresas y el sector privado, la sociedad civil, las organizaciones internacionales y otros actores relevantes. Estas alianzas facilitarán y fomentarán la movilización de los recursos financieros, tecnológicos y humanos necesarios, así como de los conocimientos y buenas prácticas que permitirán crear un impacto significativo. "]
[]
[]
[]
[]
[]
[null,null,"ODS"]
[null,null,"Revitalizar la Alianza Mundial para el Desarrollo Sostenible"]
[]
[]
[]
[]
[]
[null,null,"¿Está este ODS priorizado por su organización?",null,null,null,null,null,null,null,null,null,null,null,null,null,"Conteste acá",null,null,null,null,"Si la respuesta es \"Sí\", continúe"]
[null,null,null,null,null,null,null,null,null,null,null,null,null,null,null,null,null,null,null,null,null,"Si la respuesta es \"No\", pase al siguiente ODS"]
[null,null,"Sobre el anterior ODS:"]
[null,null,"Cualidad",null,null,null,"Preguntas",null,null,null,null,null,null,null,null,null,null,null,null,null,null,null,null,null,"Sí / No",null,null,null,null,null,null,null,null,"Promedio"]
[null,null,"Intencional",null,null,null,"¿Ha desarrollado una estrategia que refleje este compromiso, cubriendo las operaciones de extremo a extremo? ",null,null,null,null,null,null,null,null,null,null,null,null,null,null,null,null,null,null,null,null,null,null,null,null,null,{"$f":"IF(Y762=\"Sí\",1,\"\")","v":""},{"$f":"SUM(AG762:AG767)/3","v":0}]
[]
[null,null,null,null,null,null,"¿Está comprometido con aprender de sus acciones y cuenta con procesos para su mejora? ",null,null,null,null,null,null,null,null,null,null,null,null,null,null,null,null,null,null,null,null,null,null,null,null,null,{"$f":"IF(Y764=\"Sí\",1,\"\")","v":""}]
[]
[null,null,null,null,null,null,"¿Su estrategia está respaldada por los niveles más altos de administración, incluida la Junta Directiva?",null,null,null,null,null,null,null,null,null,null,null,null,null,null,null,null,null,null,null,null,null,null,null,null,null,{"$f":"IF(Y766=\"Sí\",1,\"\")","v":""}]
[]
[null,null,"Ambicioso",null,null,null,"¿Sus acciones logran resultados a largo plazo que superan en gran medida los resultados de las prácticas empresariales actuales?",null,null,null,null,null,null,null,null,null,null,null,null,null,null,null,null,null,null,null,null,null,null,null,null,null,{"$f":"IF(Y768=\"Sí\",1,\"\")","v":""},{"$f":"SUM(AG768:AG771)/2","v":0}]
[]
[null,null,null,null,null,null,"¿Están alineadas sus acciones con lo que se necesita para alcanzar este ODS?",null,null,null,null,null,null,null,null,null,null,null,null,null,null,null,null,null,null,null,null,null,null,null,null,null,{"$f":"IF(Y770=\"Sí\",1,\"\")","v":""}]
[]
[null,null,"Consistente",null,null,null,"¿El apoyo al ODS está incluido en todas las funciones de la organización?",null,null,null,null,null,null,null,null,null,null,null,null,null,null,null,null,null,null,null,null,null,null,null,null,null,{"$f":"IF(Y772=\"Sí\",1,\"\")","v":""},{"$f":"SUM(AG772:AG775)/2","v":0}]
[]
[null,null,null,null,null,null,"¿Los incentivos del personal y de los directivos están alineados con la acción de aportar al ODS?",null,null,null,null,null,null,null,null,null,null,null,null,null,null,null,null,null,null,null,null,null,null,null,null,null,{"$f":"IF(Y774=\"Sí\",1,\"\")","v":""}]
[]
[null,null,"Colaborativo",null,null,null,"¿Busca de forma proactiva oportunidades para asociarse con gobiernos, agencias de la ONU, proveedores, ONG, pares de la industria y otras partes interesadas para aumentar su avance hacia el Objetivo ?",null,null,null,null,null,null,null,null,null,null,null,null,null,null,null,null,null,null,null,null,null,null,null,null,null,{"$f":"IF(Y776=\"Sí\",1,\"\")","v":""},{"$f":"SUM(AG776:AG778)/1","v":0}]
[]
[]
[null,null,"Responsable",null,null,null,"¿Expresa públicamente su compromiso de avanzar en el ODS?",null,null,null,null,null,null,null,null,null,null,null,null,null,null,null,null,null,null,null,null,null,null,null,null,null,{"$f":"IF(Y779=\"Sí\",1,\"\")","v":""},{"$f":"SUM(AG779:AG784)/5","v":0}]
[null,null,null,null,null,null,"¿Identifica, monitorea e informa sobre los impactos, incluidos los impactos potencialmente adversos?",null,null,null,null,null,null,null,null,null,null,null,null,null,null,null,null,null,null,null,null,null,null,null,null,null,{"$f":"IF(Y780=\"Sí\",1,\"\")","v":""}]
[]
[null,null,null,null,null,null,"¿Mitiga los riesgos asociados con este Objetivo?",null,null,null,null,null,null,null,null,null,null,null,null,null,null,null,null,null,null,null,null,null,null,null,null,null,{"$f":"IF(Y782=\"Sí\",1,\"\")","v":""}]
[null,null,null,null,null,null,"¿Remedia los impactos negativos asociados con sus acciones?",null,null,null,null,null,null,null,null,null,null,null,null,null,null,null,null,null,null,null,null,null,null,null,null,null,{"$f":"IF(Y783=\"Sí\",1,\"\")","v":""}]
[null,null,null,null,null,null,"¿Involucra a los interesados de una manera significativa?",null,null,null,null,null,null,null,null,null,null,null,null,null,null,null,null,null,null,null,null,null,null,null,null,null,{"$f":"IF(Y784=\"Sí\",1,\"\")","v":""}]

{"sheet":"Resultados","index":2,"n_rows":35,"n_cols":24,"rows_kept":35,"cut":false,"hidden":false,"merged":[[9,1,10,1],[14,3,14,6],[14,7,14,10],[14,11,14,14],[14,15,14,18],[14,19,14,22],[34,3,34,6],[34,7,34,10],[34,11,34,14],[34,15,34,18],[34,19,34,22],[34,23,34,26],[33,3,33,6],[33,7,33,10],[33,11,33,14],[33,15,33,18],[33,19,33,22],[33,23,33,26],[32,3,32,6],[32,7,32,10],[32,11,32,14],[32,15,32,18],[32,19,32,22],[32,23,32,26],[31,3,31,6],[31,7,31,10],[31,11,31,14],[31,15,31,18],[31,19,31,22],[31,23,31,26],[30,3,30,6],[30,7,30,10],[30,11,30,14],[30,15,30,18],[30,19,30,22],[30,23,30,26],[29,3,29,6],[29,7,29,10],[29,11,29,14],[29,15,29,18],[29,19,29,22],[29,23,29,26],[28,3,28,6],[28,7,28,10],[28,11,28,14],[28,15,28,18],[28,19,28,22],[28,23,28,26],[27,3,27,6],[27,7,27,10],[27,11,27,14],[27,15,27,18],[27,19,27,22],[27,23,27,26],[26,3,26,6],[26,7,26,10],[26,11,26,14],[26,15,26,18],[26,19,26,22],[26,23,26,26],[25,3,25,6],[25,7,25,10],[25,11,25,14],[25,15,25,18],[25,19,25,22],[25,23,25,26],[24,3,24,6],[24,7,24,10],[24,11,24,14],[24,15,24,18],[24,19,24,22],[24,23,24,26],[23,3,23,6],[23,7,23,10],[23,11,23,14],[23,15,23,18],[23,19,23,22],[23,23,23,26],[22,3,22,6],[22,7,22,10],[22,11,22,14],[22,15,22,18],[22,19,22,22],[22,23,22,26],[21,3,21,6],[21,7,21,10],[21,11,21,14],[21,15,21,18],[21,19,21,22],[21,23,21,26],[20,3,20,6],[20,7,20,10],[20,11,20,14],[20,15,20,18],[20,19,20,22],[20,23,20,26],[19,3,19,6],[19,7,19,10],[19,11,19,14],[19,15,19,18],[19,19,19,22],[19,23,19,26],[18,3,18,6],[18,7,18,10],[18,11,18,14],[18,15,18,18],[18,19,18,22],[18,23,18,26],[17,3,17,6],[17,7,17,10],[17,11,17,14],[17,15,17,18],[17,19,17,22],[17,23,17,26]]}
[]
[]
[]
[]
[]
[]
[]
[]
[]
[null,"¿Qué resultados desea ver?","¿Priorizado?"]
[null,null,"Sí"]
[]
[]
[]
[null,null,null,"El apoyo al ODS es una parte integral y deliberada de la estrategia de una empresa líder.",null,null,null,"El nivel de ambición de una empresa líder supera con creces los niveles de ambición prevalecientes y se centra en los resultados a largo plazo.",null,null,null,"El apoyo al ODS está integrado en las funciones de la organización y las comunicaciones externas.",null,null,null,"El apoyo al ODS implica alianzas, incluso con otras empresas, el gobierno, la sociedad civil y otros actores",null,null,null,"Una empresa líder es transparente, gestiona sus riesgos, se compromete con las partes interesadasy es responsable de los impactos adversos."]
[]
[]
[null,"ODS","¿Priorizado?","Intencional",null,null,null,"Ambicioso",null,null,null,"Consistente",null,null,null,"Colaborativo",null,null,null,"Responsable",null,null,null,"Total ODS"]
[null,{"$error":"#VALUE!"},{"$f":"ODS!$Q$28","v":"Conteste acá"},{"$f":"IF(C19=\"Sí\",ODS!AH32,\"\")","v":""},null,null,null,{"$f":"IF(C19=\"Sí\",ODS!AH38,\"\")","v":""},null,null,null,{"$f":"IF(C19=\"Sí\",ODS!AH42,\"\")","v":""},null,null,null,{"$f":"IF(C19=\"Sí\",ODS!AH46,\"\")","v":""},null,null,null,{"$f":"IF(C19=\"Sí\",ODS!AH49,\"\")","v":""},null,null,null,{"$f":"IF(C19=\"Sí\",AVERAGE(D19:W19),\"\")","v":""}]
[null,{"$error":"#VALUE!"},{"$f":"ODS!$Q$74","v":"Conteste acá"},{"$f":"IF(C20=\"Sí\",ODS!AH78,\"\")","v":""},null,null,null,{"$f":"IF(C20=\"Sí\",ODS!AH84,\"\")","v":""},null,null,null,{"$f":"IF(C20=\"Sí\",ODS!AH88,\"\")","v":""},null,null,null,{"$f":"IF(C20=\"Sí\",ODS!AH92,\"\")","v":""},null,null,null,{"$f":"IF(C20=\"Sí\",ODS!AH95,\"\")","v":""},null,null,null,{"$f":"IF(C20=\"Sí\",AVERAGE(D20:W20),\"\")","v":""}]
[null,{"$error":"#VALUE!"},{"$f":"ODS!$Q$117","v":"Conteste acá"},{"$f":"IF(C21=\"Sí\",ODS!AH121,\"\")","v":""},null,null,null,{"$f":"IF(C21=\"Sí\",ODS!AH127,\"\")","v":""},null,null,null,{"$f":"IF(C21=\"Sí\",ODS!AH131,\"\")","v":""},null,null,null,{"$f":"IF(C21=\"Sí\",ODS!AH135,\"\")","v":""},null,null,null,{"$f":"IF(C21=\"Sí\",ODS!AH138,\"\")","v":""},null,null,null,{"$f":"IF(C21=\"Sí\",AVERAGE(D21:W21),\"\")","v":""}]
[null,{"$error":"#VALUE!"},{"$f":"ODS!$Q$163","v":"Conteste acá"},{"$f":"IF(C22=\"Sí\",ODS!AH167,\"\")","v":""},null,null,null,{"$f":"IF(C22=\"Sí\",ODS!AH173,\"\")","v":""},null,null,null,{"$f":"IF(C22=\"Sí\",ODS!AH177,\"\")","v":""},null,null,null,{"$f":"IF(C22=\"Sí\",ODS!AH181,\"\")","v":""},null,null,null,{"$f":"IF(C22=\"Sí\",ODS!AH184,\"\")","v":""},null,null,null,{"$f":"IF(C22=\"Sí\",AVERAGE(D22:W22),\"\")","v":""}]
[null,{"$error":"#VALUE!"},{"$f":"ODS!$Q$215","v":"Conteste acá"},{"$f":"IF(C23=\"Sí\",ODS!AH219,\"\")","v":""},null,null,null,{"$f":"IF(C23=\"Sí\",ODS!AH225,\"\")","v":""},null,null,null,{"$f":"IF(C23=\"Sí\",ODS!AH229,\"\")","v":""},null,null,null,{"$f":"IF(C23=\"Sí\",ODS!AH233,\"\")","v":""},null,null,null,{"$f":"IF(C23=\"Sí\",ODS!AH236,\"\")","v":""},null,null,null,{"$f":"IF(C23=\"Sí\",AVERAGE(D23:W23),\"\")","v":""}]
[null,{"$error":"#VALUE!"},{"$f":"ODS!$Q$261","v":"Conteste acá"},{"$f":"IF(C24=\"Sí\",ODS!AH265,\"\")","v":""},null,null,null,{"$f":"IF(C24=\"Sí\",ODS!AH271,\"\")","v":""},null,null,null,{"$f":"IF(C24=\"Sí\",ODS!AH275,\"\")","v":""},null,null,null,{"$f":"IF(C24=\"Sí\",ODS!AH279,\"\")","v":""},null,null,null,{"$f":"IF(C24=\"Sí\",ODS!AH282,\"\")","v":""},null,null,null,{"$f":"IF(C24=\"Sí\",AVERAGE(D24:W24),\"\")","v":""}]
[null,{"$error":"#VALUE!"},{"$f":"ODS!$Q$309","v":"Conteste acá"},{"$f":"IF(C25=\"Sí\",ODS!AH313,\"\")","v":""},null,null,null,{"$f":"IF(C25=\"Sí\",ODS!AH319,\"\")","v":""},null,null,null,{"$f":"IF(C25=\"Sí\",ODS!AH323,\"\")","v":""},null,null,null,{"$f":"IF(C25=\"Sí\",ODS!AH327,\"\")","v":""},null,null,null,{"$f":"IF(C25=\"Sí\",ODS!AH330,\"\")","v":""},null,null,null,{"$f":"IF(C25=\"Sí\",AVERAGE(D25:W25),\"\")","v":""}]
[null,{"$error":"#VALUE!"},{"$f":"ODS!$Q$355","v":"Conteste acá"},{"$f":"IF(C26=\"Sí\",ODS!AH359,\"\")","v":""},null,null,null,{"$f":"IF(C26=\"Sí\",ODS!AH365,\"\")","v":""},null,null,null,{"$f":"IF(C26=\"Sí\",ODS!AH369,\"\")","v":""},null,null,null,{"$f":"IF(C26=\"Sí\",ODS!AH373,\"\")","v":""},null,null,null,{"$f":"IF(C26=\"Sí\",ODS!AH376,\"\")","v":""},null,null,null,{"$f":"IF(C26=\"Sí\",AVERAGE(D26:W26),\"\")","v":""}]
[null,{"$error":"#VALUE!"},{"$f":"ODS!$Q$400","v":"Conteste acá"},{"$f":"IF(C27=\"Sí\",ODS!AH404,\"\")","v":""},null,null,null,{"$f":"IF(C27=\"Sí\",ODS!AH410,\"\")","v":""},null,null,null,{"$f":"IF(C27=\"Sí\",ODS!AH414,\"\")","v":""},null,null,null,{"$f":"IF(C27=\"Sí\",ODS!AH418,\"\")","v":""},null,null,null,{"$f":"IF(C27=\"Sí\",ODS!AH421,\"\")","v":""},null,null,null,{"$f":"IF(C27=\"Sí\",AVERAGE(D27:W27),\"\")","v":""}]
[null,{"$error":"#VALUE!"},{"$f":"ODS!$Q$446","v":"Conteste acá"},{"$f":"IF(C28=\"Sí\",ODS!AH450,\"\")","v":""},null,null,null,{"$f":"IF(C28=\"Sí\",ODS!AH456,\"\")","v":""},null,null,null,{"$f":"IF(C28=\"Sí\",ODS!AH460,\"\")","v":""},null,null,null,{"$f":"IF(C28=\"Sí\",ODS!AH464,\"\")","v":""},null,null,null,{"$f":"IF(C28=\"Sí\",ODS!AH467,\"\")","v":""},null,null,null,{"$f":"IF(C28=\"Sí\",AVERAGE(D28:W28),\"\")","v":""}]
[null,{"$error":"#VALUE!"},{"$f":"ODS!$Q$486","v":"Conteste acá"},{"$f":"IF(C29=\"Sí\",ODS!AH490,\"\")","v":""},null,null,null,{"$f":"IF(C29=\"Sí\",ODS!AH496,\"\")","v":""},null,null,null,{"$f":"IF(C29=\"Sí\",ODS!AH500,\"\")","v":""},null,null,null,{"$f":"IF(C29=\"Sí\",ODS!AH504,\"\")","v":""},null,null,null,{"$f":"IF(C29=\"Sí\",ODS!AH507,\"\")","v":""},null,null,null,{"$f":"IF(C29=\"Sí\",AVERAGE(D29:W29),\"\")","v":""}]
[null,{"$error":"#VALUE!"},{"$f":"ODS!$Q$530","v":"Conteste acá"},{"$f":"IF(C30=\"Sí\",ODS!AH534,\"\")","v":""},null,null,null,{"$f":"IF(C30=\"Sí\",ODS!AH540,\"\")","v":""},null,null,null,{"$f":"IF(C30=\"Sí\",ODS!AH544,\"\")","v":""},null,null,null,{"$f":"IF(C30=\"Sí\",ODS!AH548,\"\")","v":""},null,null,null,{"$f":"IF(C30=\"Sí\",ODS!AH551,\"\")","v":""},null,null,null,{"$f":"IF(C30=\"Sí\",AVERAGE(D30:W30),\"\")","v":""}]
[null,{"$error":"#VALUE!"},{"$f":"ODS!$Q$580","v":"Conteste acá"},{"$f":"IF(C31=\"Sí\",ODS!AH584,\"\")","v":""},null,null,null,{"$f":"IF(C31=\"Sí\",ODS!AH590,\"\")","v":""},null,null,null,{"$f":"IF(C31=\"Sí\",ODS!AH594,\"\")","v":""},null,null,null,{"$f":"IF(C31=\"Sí\",ODS!AH598,\"\")","v":""},null,null,null,{"$f":"IF(C31=\"Sí\",ODS!AH601,\"\")","v":""},null,null,null,{"$f":"IF(C31=\"Sí\",AVERAGE(D31:W31),\"\")","v":""}]
[null,{"$error":"#VALUE!"},{"$f":"ODS!$Q$627","v":"Conteste acá"},{"$f":"IF(C32=\"Sí\",ODS!AH631,\"\")","v":""},null,null,null,{"$f":"IF(C32=\"Sí\",ODS!AH637,\"\")","v":""},null,null,null,{"$f":"IF(C32=\"Sí\",ODS!AH641,\"\")","v":""},null,null,null,{"$f":"IF(C32=\"Sí\",ODS!AH645,\"\")","v":""},null,null,null,{"$f":"IF(C32=\"Sí\",ODS!AH648,\"\")","v":""},null,null,null,{"$f":"IF(C32=\"Sí\",AVERAGE(D32:W32),\"\")","v":""}]
[null,{"$error":"#VALUE!"},{"$f":"ODS!$Q$670","v":"Conteste acá"},{"$f":"IF(C33=\"Sí\",ODS!AH674,\"\")","v":""},null,null,null,{"$f":"IF(C33=\"Sí\",ODS!AH680,\"\")","v":""},null,null,null,{"$f":"IF(C33=\"Sí\",ODS!AH684,\"\")","v":""},null,null,null,{"$f":"IF(C33=\"Sí\",ODS!AH688,\"\")","v":""},null,null,null,{"$f":"IF(C33=\"Sí\",ODS!AH691,\"\")","v":""},null,null,null,{"$f":"IF(C33=\"Sí\",AVERAGE(D33:W33),\"\")","v":""}]
[null,{"$error":"#VALUE!"},{"$f":"ODS!$Q$715","v":"Conteste acá"},{"$f":"IF(C34=\"Sí\",ODS!AH719,\"\")","v":""},null,null,null,{"$f":"IF(C34=\"Sí\",ODS!AH725,\"\")","v":""},null,null,null,{"$f":"IF(C34=\"Sí\",ODS!AH729,\"\")","v":""},null,null,null,{"$f":"IF(C34=\"Sí\",ODS!AH733,\"\")","v":""},null,null,null,{"$f":"IF(C34=\"Sí\",ODS!AH736,\"\")","v":""},null,null,null,{"$f":"IF(C34=\"Sí\",AVERAGE(D34:W34),\"\")","v":""}]
[null,{"$error":"#VALUE!"},{"$f":"ODS!$Q$758","v":"Conteste acá"},{"$f":"IF(C35=\"Sí\",ODS!AH762,\"\")","v":""},null,null,null,{"$f":"IF(C35=\"Sí\",ODS!AH768,\"\")","v":""},null,null,null,{"$f":"IF(C35=\"Sí\",ODS!AH772,\"\")","v":""},null,null,null,{"$f":"IF(C35=\"Sí\",ODS!AH776,\"\")","v":""},null,null,null,{"$f":"IF(C35=\"Sí\",ODS!AH779,\"\")","v":""},null,null,null,{"$f":"IF(C35=\"Sí\",AVERAGE(D35:W35),\"\")","v":""}]

{"sheet":"Análisis de las cualidades","index":3,"n_rows":16,"n_cols":5,"rows_kept":16,"cut":false,"hidden":false,"merged":[[9,1,9,4]]}
[]
[]
[]
[]
[]
[]
[]
[]
[]
[null,"Cinco cualidades del liderazgo en los ODS \n(tomado de la GUÍA PARA EL LIDERAZGO DE LOS OBJETIVOS DE DESARROLLO SOSTENIBLE de Pacto Global)"]
[null,"Cualidad","Definición","Descripición","¿Qué hacer?"]
[null,"Intencional","El apoyo a los ODS es una parte integral y deliberada de la estrategia de una empresa líder.","Las acciones de una empresa líder en apoyo a los ODS son una parte integral y deliberada de su estrategia. Promover los ODS implica incorporar estos objetivos a las metas comerciales a largo plazo de la empresa. Es un elemento integral por el cual la organización se esfuerza por la creación de valor; gestiona su personal, y su cadena de suministro; y aborda los riesgos. Esto debe ser  promovido desde los niveles más altos de la empresa, y debe involucrar una visión estratégica para explorar nuevas formas de contribución a los ODS.","- Desarrollar una estrategia que refleje este compromiso, cubriendo las operaciones de extremo a extremo.\n- Aprender de sus acciones y contar con procesos para su mejora.\n- Conseguir el respaldo de los niveles más altos de administración, incluida la Junta Directiva, a la estrategia."]
[null,"Ambicioso","El nivel de ambición de una empresa líder supera con creces los niveles de ambición prevalecientes y se centra en los resultados a largo plazo.","El nivel de ambición de una empresa líder se alinea con los objetivos globales cuando es relevante e inspira la acción de otros. La acción líder representa un paso adelante en la contribución a los ODS dentro de una industria o en distintos puntos geográficos. Los objetivos se establecen según la ciencia o los umbrales aceptados, lo que implica un nivel de ambición que cumple o supera lo que se requiere para realizar los ODS. Una organización líder inspira a otras a emular sus acciones.La empresa líder tiene el potencial de transformar la forma en que se realiza el negocio más allá de los límites de su propia organización. La ambición requiere que la acción sea material en el contexto de las operaciones integrales de la compañía. Las pequeñas y medianas empresas pueden ser tan ambiciosas como las multinacionales, a pesar de que cada tipo de empresa tenga diferentes niveles de impacto absoluto (negativo y positivo). Finalmente, la ambición representa un enfoque en la acción que ofrecerá resultados a largo plazo. Una empresa líder se enfoca en el progreso a largo plazo al tiempo que garantiza contribuciones de corto plazo a los ODS.","- Buscar resultados a largo plazo que superen, en gran medida, los resultados de las prácticas empresariales actuales.\n- Alinear sus acciones con lo que se necesita para alcanzar el ODS."]
[null,"Consistente","El apoyo a los ODS está integrado en las funciones de la organización y a las comunicaciones externas.","Una compañía líder incorpora soporte para los ODS en todas las funciones de la organización, haciendo que sus acciones y comunicación sean consistentes. El enfoque en los ODS es reconocido en todo el negocio, incluso por todos los líderes principales. El compromiso y el comportamiento ético de los directivos están integrados en toda la organización y le apuntan al desempeño requerido para avanzar en los ODS. Es importante que exista consistencia entre lo que la empresa dice y lo que hace a lo largo de su negocio, desde la publicidad y el marketing hasta la estrategia corporativa y los asuntos de gobierno corporativo. Una empresa líder alinea su voz pública  con sus ambiciones, estrategias y acciones para apoyar los ODS. Esto requiere transparencia interna y externa en línea con la calidad de la rendición de cuentas. Una empresa líder es coherente en la intención de sus acciones y enfoques a lo largo de las geografías y en el tiempo, adaptándolos a las diferencias contextuales, según corresponda.","- Incluir el apoyo al ODS en todas las funciones y áreas de la organización.\n- Revisar que los incentivos del personal y de los directivos estén alineados con la acción de aportar a los ODS."]
[null,"Colaborativo","El apoyo a los ODS implica alianzas, incluso con otras empresas, el gobierno, la sociedad civil y otros actores.","La acción de una compañía líder en los ODS incluye la colaboración proactiva con otros. Las alianzas complementan las capacidades propias de la compañía líder con el fin de lograr los mejores resultados posibles para los ODS. La empresa forja alianzas con otras empresas, el gobierno, las organizaciones de la sociedad civil, la academia, los inversionistas y las comunidades locales. La colaboración sigue las pautas establecidas y los principios de participación en las áreas relevantes. Las alianzas deben ser de propiedad conjunta e involucrar la toma de decisiones compartida. Debe garantizarse la legitimidad del uso que hace la empresa líder de su poder en el contexto de sus asociaciones, especialmente en relación con las prioridades del gobierno en los países en desarrollo.","- Buscar de forma proactiva oportunidades para asociarse con gobiernos, agencias de la ONU, proveedores, ONG, pares de la industria y otras partes interesadas para aumentar su avance hacia los ODS?"]
[null,"Responsable","Una empresa líder es transparente, gestiona sus riesgos, se compromete con las partes interesadas y es responsable de los impactos adversos.","Una empresa líder es consciente de su compromiso con las personas y el planeta, y actúa al asumir responsabilidad por las acciones que lleva a cabo y los impactos que estas generan. Tiene sistemas para identificar los impactos que causa, contribuye y está vinculado a; cuenta con procesos de gestión de riesgos para prevenir impactos adversos; y desarrolla procedimientos para permitir el acceso a las soluciones, incluso a través de mecanismos de reclamo, por cualquier impacto restante que resulte de sus acciones o decisiones. El liderazgo responsable significa ser transparente e involucrar a las partes interesadas de manera proactiva en los desafíos y el progreso hacia los ODS. Esto fomenta la confianza del gobierno, los inversionistas, los colaboradores, los clientes y las comunidades. Una empresa líder sabe y muestra cómo está mejorando su rendimiento, permitiendo que estos interesados tomen decisiones informadas. Una empresa líder también tiene en cuenta las opiniones de las partes interesadas y actúa con base en ellas. Para ser responsable, una empresa líder debe actuar legalmente y alinear sus acciones con las normas internacionales establecidas, incluso en los casos en que la legislación nacional se queda corta. ","- Expresar públicamente su compromiso de avanzar en el ODS.\n- Identificar, monitorear e informar sobre los impactos, incluidos los impactos potencialmente adversos.\n- Mitigar los riesgos asociados con este Objetivo.\n- Remediar los impactos negativos asociados con sus acciones.\n- Involucrar a los interesados de una manera significativa."]